{"text_format":"1","workbook":"xlsx","n_sheets":13,"sheets":["⇒記入必須シート","IT運用有_設定申込書","⇒これより右は【詳細申込】がある場合のみ記載","IT運用有_詳細申込書","IT運用有_【別紙1】ポート・VLAN設定","IT運用有_【別紙2】DHCP設定","IT運用有_【別紙3】スタティックルート設定","IT運用有_【別紙4】ポートフォワーディング設定","IT運用有_【別紙5】ロードバランシング設定","IT運用有_【別紙6】L3FW・帯域制御設定","IT運用有_【別紙7】リモートアクセス設定","IT運用有_【別紙12】ダッシュボード統合設定","リスト"],"not_rendered":{"charts":0,"images":0,"macros":1,"external_links":0,"defined_names":15,"comments":0,"pivot_tables":0},"unopened":[],"bounds":{"document_bytes":16777216,"sheet_cells":100000,"rows_first":2000,"rows_last":500,"rows_between":2000,"halvings":0,"cell_chars":16384,"cell_head_chars":4096},"cells_cut":0,"cells_raw":0,"read":"whole","date_system":"1900"}

{"sheet":"⇒記入必須シート","index":0,"n_rows":0,"n_cols":0,"rows_kept":0,"cut":false,"hidden":false,"merged":[]}

{"sheet":"IT運用有_設定申込書","index":1,"n_rows":88,"n_cols":53,"rows_kept":88,"cut":false,"hidden":false,"merged":[[87,1,88,8],[87,9,88,52],[85,1,85,8],[85,9,85,26],[86,9,86,52],[86,1,86,8],[85,27,85,52],[83,1,83,8],[83,9,83,26],[83,27,83,34],[83,35,83,52],[84,1,84,8],[84,9,84,26],[84,27,84,34],[84,35,84,52],[73,1,78,52],[80,1,81,52],[82,1,82,8],[82,9,82,26],[82,27,82,34],[82,35,82,52],[66,1,67,8],[66,9,66,13],[66,14,66,52],[67,9,67,52],[70,1,71,52],[12,1,12,52],[56,1,59,52],[61,1,65,8],[61,9,62,13],[61,14,62,52],[63,9,65,13],[63,14,63,16],[63,17,63,31],[63,32,65,37],[64,14,65,31],[64,39,64,41],[64,43,64,45],[64,47,64,50],[33,1,34,52],[29,3,29,14],[22,1,23,52],[10,49,10,51],[11,1,11,8],[11,9,11,28],[11,29,11,36],[11,37,11,52],[26,1,26,4],[26,5,26,19],[37,1,37,11],[39,26,39,52],[39,1,39,19],[38,1,38,52],[37,12,37,13],[42,1,42,9],[42,10,42,17],[40,1,40,9],[40,10,40,17],[40,26,40,29],[41,1,41,9],[41,10,41,17],[42,26,42,52],[20,1,20,20],[19,23,19,52],[53,1,53,11],[53,12,53,13],[41,26,41,29],[41,30,41,52],[19,1,19,18],[19,19,19,20],[49,1,49,23],[50,1,50,11],[50,12,50,13],[46,1,47,52],[43,1,43,52],[40,30,40,52],[29,1,29,2],[36,1,36,24],[17,2,17,51],[14,8,14,12],[0,0,0,13],[1,1,4,52],[6,1,6,52],[0,45,0,53],[7,1,9,8],[7,9,7,11],[7,12,7,52],[8,9,9,52],[10,1,10,8],[10,9,10,28],[10,29,10,36],[10,37,10,38],[10,39,10,43],[10,45,10,47]]}
["【注意】マクロを必ず有効にしてください",null,null,null,null,null,null,null,null,null,null,null,null,null,null,null,null,null,null,null,null,null,null,null,null,null,null,null,null,null,null,null,null,null,null,null,null,null,null,null,null,null,null,null,null,"手書き・PDFは不可"]
[null,"IT運用有【様式8Y】ギガらくルーター_設定変更申込書"]
[]
[]
[]
[null,null,null,null,null,null,null,null,null,null,null,null,null,null,null,null,null,null,null,null,null,null,null,null,null,null,null,null,null,null,null,null,null,null,null,null,null,null,null,null,null,null,null,null,null,null,null,"Ver1.0(2026.03.02～)"]
[]
[null,"ご契約者名\n（法人名）",null,null,null,null,null,null,null,"フリガナ"]
[]
[]
[null,"契約ID",null,null,null,null,null,null,null,null,null,null,null,null,null,null,null,null,null,null,null,null,null,null,null,null,null,null,null,"設定変更希望日※１",null,null,null,null,null,null,null,"西暦",null,null,null,null,null,null,"年",null,null,null,"月",null,null,null,"日"]
[null,"申込担当者名※2",null,null,null,null,null,null,null,null,null,null,null,null,null,null,null,null,null,null,null,null,null,null,null,null,null,null,null,"連絡先電話番号※2"]
[null,"※1 設定変更希望日の指定をする場合、様式送付日から一週間以内の日付で指定いただきますようお願いします　\n　　　例：4/3様式送付→4/10までの間で日にち指定可能(4/11以降の指定は不可)\n　　　ご希望に添えない場合、ネットワーク機器サポートセンタより相談の連絡をさせていただくことがございます\n※2 ご依頼内容に対し不明な点があった際、ネットワーク機器サポートセンタより連絡先電話番号へ連絡させていただくことがございます"]
[]
[]
[null,"■　複数拠点の統合管理設定(ダッシュボード統合設定※エンドユーザ様向けダッシュボードは後日提供予定)"]
[]
[null,null,"ご利用中のギガらくルーター Type-Yのダッシュボードに別拠点のギガらくルーターType-Yを追加する場合、統合管理設定申込有無にチェック（\"■\"）してください。\nチェックいただくことで複数拠点の統合管理を実施致します。\n※現在ダッシュボード機能は未提供ですが、後日提供開始を予定しておりますので事前申し込みにご協力をお願いします。"]
[]
[null,"統合管理設定申込有無",null,null,null,null,null,null,null,null,null,null,null,null,null,null,null,null,null,"□",null,null,null,"申込有無が有（”■”）の場合、【別紙１２】ダッシュボード統合設定の記入が必須です。"]
[]
[]
[null,"設定変更する拠点の契約ID"]
[]
[]
[]
[null,"契約ID"]
[]
[]
[]
[]
[]
[]
[null,"基本項目"]
[]
[]
[null,"■インターネットVPNの利用（複数拠点での利用）"]
[null,"利用有無",null,null,null,null,null,null,null,null,null,null,"□"]
[null,"必ず【様式9Y】ギガらくルーターType-Y_インターネットVPN設定申込書の提出願います。\n本装置のIPアドレス設定は本様式にて記入願います。"]
[null,"■ルーター機器の基本設定(LAN1)",null,null,null,null,null,null,null,null,null,null,null,null,null,null,null,null,null,null,null,null,null,null,null,null,"■デフォルト設定"]
[null,"サブネット",null,null,null,null,null,null,null,null,"本装置のIPアドレス",null,null,null,null,null,null,null,null,null,null,null,null,null,null,null,"・DHCP",null,null,null,"DHCPサーバ有効（本装置のIPを除き、サブネット内全IPが払出対象）"]
[null,"例　192.168.100.0/24",null,null,null,null,null,null,null,null,"192.168.100.1",null,null,null,null,null,null,null,null,null,null,null,null,null,null,null,"・L3FW",null,null,null,"外⇒内のDeny設定"]
[null,null,null,null,null,null,null,null,null,null,null,null,null,null,null,null,null,null,null,null,null,null,null,null,null,null,"※デフォルト設定から変更したい場合は別紙【詳細申込書】へ記載願います"]
[null,"※指定がない場合は192.168.100.1/24で設定させていただきます。（【別紙1】を提出いただいた場合は【別紙1】の記載内容を優先いたします。）\n　 回線冗長する場合は必ず【別紙1】の記入・提出をお願いいたします。"]
[]
[]
[null,"その他設定"]
[]
[]
[null,"■詳細設定の有無（詳細申込書の記入）"]
[null,"詳細設定有無",null,null,null,null,null,null,null,null,null,null,"□"]
[]
[]
[null,"全項目表示",null,null,null,null,null,null,null,null,null,null,"□"]
[]
[]
[null,"連絡先の変更"]
[]
[]
[]
[]
[null,"変更後の\n弊社からの連絡先",null,null,null,null,null,null,null,"部署名"]
[]
[null,null,null,null,null,null,null,null,null,"氏名",null,null,null,null,"フリガナ",null,null,null,null,null,null,null,null,null,null,null,null,null,null,null,null,null,"日中の連絡先\n電話番号"]
[null,null,null,null,null,null,null,null,null,null,null,null,null,null,null,null,null,null,null,null,null,null,null,null,null,null,null,null,null,null,null,null,null,null,null,null,null,null,"（",null,null,null,"）",null,null,null,"－"]
[]
[null,"弊社からサポート情報を送付する\nメールアドレス",null,null,null,null,null,null,null,"フリガナ",null,null,null,null,{"$f":"alphanumeric(J68)","v":""}]
[]
[]
[]
[null,"自由記述欄"]
[]
[]
[]
[]
[]
[]
[]
[]
[]
[null,"------------------------------------　　以下弊社記入欄　　------------------------------------"]
[]
[null,"支社・支店",null,null,null,null,null,null,null,null,null,null,null,null,null,null,null,null,null,null,null,null,null,null,null,null,null,"部"]
[null,"部門",null,null,null,null,null,null,null,null,null,null,null,null,null,null,null,null,null,null,null,null,null,null,null,null,null,"販売ｃｈコード"]
[null,"担当者名",null,null,null,null,null,null,null,null,null,null,null,null,null,null,null,null,null,null,null,null,null,null,null,null,null,"社員コード"]
[null,"連絡先TEL"]
[null,"連絡先メールアドレス"]
[null,"連絡欄"]

{"sheet":"⇒これより右は【詳細申込】がある場合のみ記載","index":2,"n_rows":0,"n_cols":0,"rows_kept":0,"cut":false,"hidden":true,"merged":[]}

{"sheet":"IT運用有_詳細申込書","index":3,"n_rows":15,"n_cols":48,"rows_kept":15,"cut":false,"hidden":true,"merged":[[5,1,5,52],[11,29,11,41],[12,1,12,13],[13,42,13,52],[12,14,12,24],[13,29,13,41],[14,1,14,13],[14,14,14,24],[0,45,0,53],[13,1,13,13],[13,14,13,24],[12,29,12,41],[12,42,12,52],[11,42,11,52],[1,1,4,52],[7,1,8,52],[10,1,10,13],[10,14,10,24],[10,29,10,41],[10,42,10,52],[11,1,11,13],[11,14,11,24]]}
[null,null,null,null,null,null,null,null,null,null,null,null,null,null,null,null,null,null,null,null,null,null,null,null,null,null,null,null,null,null,null,null,null,null,null,null,null,null,null,null,null,null,null,null,null,"手書き・PDFは不可"]
[null,{"$f":"IT運用有_設定申込書!B2","v":"IT運用有【様式8Y】ギガらくルーター_設定変更申込書"}]
[]
[]
[]
[null,"詳細申込書"]
[null,null,null,null,null,null,null,null,null,null,null,null,null,null,null,null,null,null,null,null,null,null,null,null,null,null,null,null,null,null,null,null,null,null,null,null,null,null,null,null,null,null,null,null,null,null,null,{"$f":"IT運用有_設定申込書!AV6","v":"Ver1.0(2026.03.02～)"}]
[null,"詳細設定項目"]
[]
[]
[null,"設定項目",null,null,null,null,null,null,null,null,null,null,null,null,"設定内容",null,null,null,null,null,null,null,null,null,null,null,null,null,null,"設定項目",null,null,null,null,null,null,null,null,null,null,null,null,"設定内容"]
[null,"ポート・VLAN設定",null,null,null,null,null,null,null,null,null,null,null,null,"無し",null,null,null,null,null,null,null,null,null,null,null,null,null,null,"ロードバランシング設定",null,null,null,null,null,null,null,null,null,null,null,null,"無し"]
[null,"DHCP設定",null,null,null,null,null,null,null,null,null,null,null,null,"無し",null,null,null,null,null,null,null,null,null,null,null,null,null,null,"L3FW・帯域制御設定",null,null,null,null,null,null,null,null,null,null,null,null,"無し"]
[null,"スタティックルート設定",null,null,null,null,null,null,null,null,null,null,null,null,"無し",null,null,null,null,null,null,null,null,null,null,null,null,null,null,"リモートアクセス設定",null,null,null,null,null,null,null,null,null,null,null,null,"無し"]
[null,"ポートフォワーディング設定",null,null,null,null,null,null,null,null,null,null,null,null,"無し"]

{"sheet":"IT運用有_【別紙1】ポート・VLAN設定","index":4,"n_rows":60,"n_cols":48,"rows_kept":60,"cut":false,"hidden":true,"merged":[[53,27,53,36],[54,15,54,26],[54,27,54,36],[55,15,55,26],[55,27,55,36],[56,15,56,26],[56,27,56,36],[35,1,35,7],[35,8,35,12],[35,13,35,23],[35,24,35,34],[56,1,56,2],[56,3,56,6],[56,8,56,9],[56,10,56,14],[55,1,55,2],[55,3,55,6],[55,8,55,9],[55,10,55,14],[51,15,51,26],[52,15,52,26],[53,15,53,26],[53,1,53,2],[53,3,53,6],[53,8,53,9],[53,10,53,14],[54,1,54,2],[54,3,54,6],[54,8,54,9],[54,10,54,14],[49,3,50,9],[49,10,50,14],[51,8,51,9],[51,3,51,6],[51,10,51,14],[52,3,52,6],[52,8,52,9],[52,10,52,14],[52,27,52,36],[49,1,50,2],[51,1,51,2],[52,1,52,2],[32,35,33,52],[34,35,34,52],[36,35,36,52],[37,35,37,52],[38,35,38,52],[37,13,37,23],[39,8,39,12],[40,8,40,12],[35,35,35,52],[46,1,46,24],[41,1,41,7],[43,1,43,7],[37,8,37,12],[36,1,36,7],[36,8,36,12],[32,1,33,7],[32,8,33,12],[49,15,50,26],[49,27,50,36],[22,12,22,24],[23,12,23,24],[40,24,40,34],[24,12,24,24],[25,12,25,24],[26,12,26,24],[29,1,29,24],[30,1,30,52],[51,27,51,36],[41,24,41,34],[34,8,34,12],[41,35,41,52],[42,35,42,52],[43,35,43,52],[39,35,39,52],[40,35,40,52],[42,13,42,23],[38,8,38,12],[41,13,41,23],[59,1,60,52],[42,1,42,7],[32,13,32,23],[41,8,41,12],[42,8,42,12],[43,8,43,12],[33,13,33,23],[33,24,33,34],[34,13,34,23],[34,24,34,34],[36,24,36,34],[36,13,36,23],[37,24,37,34],[38,13,38,23],[38,24,38,34],[42,24,42,34],[43,13,43,23],[47,1,47,52],[48,1,48,52],[39,1,39,7],[43,24,43,34],[39,13,39,23],[39,24,39,34],[40,13,40,23],[61,1,68,52],[15,5,16,11],[15,1,16,4],[22,1,22,4],[23,1,23,4],[24,1,24,4],[0,45,0,53],[1,1,4,52],[5,1,5,52],[20,1,20,4],[21,1,21,4],[26,1,26,4],[25,1,25,4],[22,5,22,11],[23,5,23,11],[24,5,24,11],[25,5,25,11],[26,5,26,11],[34,1,34,7],[37,1,37,7],[38,1,38,7],[27,1,27,52],[32,24,32,34],[40,1,40,7],[10,5,10,18],[9,5,9,18],[8,55,8,76],[7,1,7,33],[10,1,10,4],[20,5,20,11],[21,5,21,11],[19,1,19,4],[19,5,19,11],[18,1,18,4],[18,5,18,11],[17,1,17,4],[17,5,17,11],[13,1,13,52],[14,1,14,52],[12,1,12,24],[15,12,16,24],[17,12,17,24],[18,12,18,24],[19,12,19,24],[20,12,20,24],[21,12,21,24]]}
[null,null,null,null,null,null,null,null,null,null,null,null,null,null,null,null,null,null,null,null,null,null,null,null,null,null,null,null,null,null,null,null,null,null,null,null,null,null,null,null,null,null,null,null,null,"手書き・PDFは不可"]
[null,{"$f":"IT運用有_設定申込書!B2","v":"IT運用有【様式8Y】ギガらくルーター_設定変更申込書"}]
[]
[]
[]
[null,"【別紙1】ポート・VLAN設定"]
[null,null,null,null,null,null,null,null,null,null,null,null,null,null,null,null,null,null,null,null,null,null,null,null,null,null,null,null,null,null,null,null,null,null,null,null,null,null,null,null,null,null,null,null,null,null,null,{"$f":"IT運用有_設定申込書!AV6","v":"Ver1.0(2026.03.02～)"}]
[null,"複数ネットワークをご利用になる場合は下記ご記入願います。\n  ※１ネットワークでポート設定をデフォルト設定のままご利用いただく場合は記入は不要です。"]
[]
[null,null,null,null,null,"↓プランを選択してください↓"]
[null,"プラン",null,null,null,"エンタープライズ10GプランType-Y"]
[]
[null,"①ポート設定"]
[null,"・各物理ポートに設定するLANインターフェースを設定願います。\n・物理ポート毎に設定できるLANインターフェースの制限がありますのでご留意願います。\n　 - ポート1～7は、LAN1,LAN4～LAN7を設定できます。\n　 - ポート8は、LAN1,LAN3（WAN2）,LAN4～LAN7を設定できます。\n　 - ポート9は、LAN2（WAN1）のみ設定できます。他のＬＡＮインターフェースに変更はできません。\n　 - ポート10は、LAN1,LAN3（WAN2）,LAN4～LAN7を設定できます。\n　 - WAN回線を冗長する場合は、ポート8またはポート10をLAN3（WAN2）と設定願います。\n・ポート8またはポート10をLAN3（WAN2）として利用する場合は、専用のローカル設定画面にてWAN2のインターネット設定が必要ですのでご留意願います。\n・LAN1は少なくとも1つのポートに設定する必要があります。"]
[]
[null,"ポート",null,null,null,"インターフェース名",null,null,null,null,null,null,"備考"]
[]
[null,1,null,null,null,"LAN1"]
[null,2,null,null,null,"LAN1"]
[null,3,null,null,null,"LAN1"]
[null,4,null,null,null,"LAN1"]
[null,5,null,null,null,"LAN1"]
[null,6,null,null,null,"LAN1"]
[null,7,null,null,null,"LAN1"]
[null,8,null,null,null,"LAN1"]
[null,9,null,null,null,"LAN2",null,null,null,null,null,null,"10ギガビット対応ポート"]
[null,10,null,null,null,"LAN1",null,null,null,null,null,null,"10ギガビット対応ポート"]
[]
[]
[null,"②IPアドレス設定"]
[null,"・各インターフェースに設定するポートタイプ（Accessポート、Trunkポート）を設定願います。\n・Accessポートの場合は、機器のIPアドレス/サブネットマスクを入力願いします。※VLANIDは1(default)固定となります。\n・Trunkポートの場合は、機器のIPアドレス/サブネットマスクおよび③Allowed VLAN設定を入力願います。※NativeVLANについては1(default)固定となります。\n・各LANインターフェースでDHCPを利用したい場合は【別紙2】DHCP設定に記載をお願いします。（【別紙2】の提出がない場合、DHCPは停止で設定いたします。）\n・LAN1をDisableにすることはできません。\n・LAN2、LAN3はWANポート専用のインターフェースのため、Accessポート、Trunkポートとしてはご利用いただけません。\n・IPv6アドレスはLAN1でのみ利用可能です。\n・LAN8は将来の機能拡張で利用予定のためご利用いただけません。"]
[]
[null,"インターフェース名",null,null,null,null,null,null,"Type",null,null,null,null,"Access/Trunk",null,null,null,null,null,null,null,null,null,null,"Trunk",null,null,null,null,null,null,null,null,null,null,"備考"]
[null,null,null,null,null,null,null,null,null,null,null,null,null,"機器のIPアドレス/サブネットマスク",null,null,null,null,null,null,null,null,null,null,"Allowed VLAN"]
[null,"例1　LAN1",null,null,null,null,null,null,"Access",null,null,null,null,"192.168.100.1/24",null,null,null,null,null,null,null,null,null,null,"-"]
[null,"例2　LAN4",null,null,null,null,null,null,"Trunk",null,null,null,null,"192.168.100.1/24",null,null,null,null,null,null,null,null,null,null,"③Allowed VLAN設定に記載"]
[null,"LAN1",null,null,null,null,null,null,"Access",null,null,null,null,null,null,null,null,null,null,null,null,null,null,null,"-",null,null,null,null,null,null,null,null,null,null,"　IPv6アドレス利用可能"]
[null,"LAN2",null,null,null,null,null,null,"WAN1",null,null,null,null,"-",null,null,null,null,null,null,null,null,null,null,"-",null,null,null,null,null,null,null,null,null,null,"　WAN1用インターフェース, ポート9固定"]
[null,"LAN3",null,null,null,null,null,null,"WAN2",null,null,null,null,"-",null,null,null,null,null,null,null,null,null,null,"-",null,null,null,null,null,null,null,null,null,null,"　WAN2用インターフェース, ポート8 or ポート10固定"]
[null,"LAN4",null,null,null,null,null,null,"Disable",null,null,null,null,"-",null,null,null,null,null,null,null,null,null,null,"-"]
[null,"LAN5",null,null,null,null,null,null,"Disable",null,null,null,null,"-",null,null,null,null,null,null,null,null,null,null,"-"]
[null,"LAN6",null,null,null,null,null,null,"Disable",null,null,null,null,"-",null,null,null,null,null,null,null,null,null,null,"-"]
[null,"LAN7",null,null,null,null,null,null,"Disable",null,null,null,null,"-",null,null,null,null,null,null,null,null,null,null,"-"]
[null,"LAN8",null,null,null,null,null,null,"Disable",null,null,null,null,"-",null,null,null,null,null,null,null,null,null,null,"-",null,null,null,null,null,null,null,null,null,null," 将来の機能拡張で利用予定のため利用不可"]
[]
[]
[null,"③Allowed VLAN設定"]
[null,"・「②IPアドレス設定」にてTypeをTrunkとした各インターフェースに対して、最大32個のVLANを設定できます（1～32）\n・同一のVLANIDおよびIPアドレスを複数のインターフェースに設定することはできません。"]
[]
[null,"No.",null,"インターフェース",null,null,null,null,null,null,"VLAN ID",null,null,null,null,"機器のIPアドレス/サブネットマスク",null,null,null,null,null,null,null,null,null,null,null,"備考"]
[]
[null,"例",null,"LAN4",null,null,null,"/",1,null,101,null,null,null,null,"192.168.101.1/24"]
[null,1,null,null,null,null,null,"/"]
[null,2,null,null,null,null,null,"/"]
[null,3,null,null,null,null,null,"/"]
[null,4,null,null,null,null,null,"/"]
[null,5,null,null,null,null,null,"/"]
[null,null,"※記入欄が足りない場合、行を追加してください。（推奨：100件まで）"]
[]
[null,"備考欄"]

{"sheet":"IT運用有_【別紙2】DHCP設定","index":5,"n_rows":66,"n_cols":48,"rows_kept":66,"cut":false,"hidden":true,"merged":[[67,1,74,52],[61,1,61,2],[61,3,61,14],[61,15,61,22],[61,23,61,27],[61,28,61,41],[65,1,66,52],[59,1,59,2],[59,3,59,14],[59,15,59,22],[59,23,59,27],[59,28,59,41],[60,1,60,2],[60,3,60,14],[60,15,60,22],[60,23,60,27],[60,28,60,41],[57,1,57,2],[57,3,57,14],[57,15,57,22],[57,23,57,27],[57,28,57,41],[58,1,58,2],[58,3,58,14],[58,15,58,22],[58,23,58,27],[58,28,58,41],[55,1,55,2],[55,3,55,14],[55,15,55,22],[55,23,55,27],[55,28,55,41],[56,1,56,2],[56,3,56,14],[56,15,56,22],[56,23,56,27],[56,28,56,41],[53,1,53,2],[53,3,53,14],[53,15,53,22],[53,23,53,27],[53,28,53,41],[54,1,54,2],[54,3,54,14],[54,15,54,22],[54,23,54,27],[54,28,54,41],[51,1,51,2],[51,3,51,14],[51,15,51,22],[51,23,51,27],[51,28,51,41],[52,1,52,2],[52,3,52,14],[52,15,52,22],[52,23,52,27],[52,28,52,41],[49,1,49,2],[49,3,49,14],[49,15,49,22],[49,23,49,27],[49,28,49,41],[50,1,50,2],[50,3,50,14],[50,15,50,22],[50,23,50,27],[50,28,50,41],[47,1,47,2],[47,3,47,14],[47,15,47,22],[47,23,47,27],[47,28,47,41],[48,1,48,2],[48,3,48,14],[48,15,48,22],[48,23,48,27],[48,28,48,41],[45,1,45,2],[45,3,45,14],[45,15,45,22],[45,23,45,27],[45,28,45,41],[46,1,46,2],[46,3,46,14],[46,15,46,22],[46,23,46,27],[46,28,46,41],[42,1,42,12],[42,13,42,52],[44,1,44,2],[44,3,44,14],[44,15,44,22],[44,23,44,27],[44,28,44,41],[34,46,34,52],[38,1,38,21],[39,1,39,52],[40,1,40,12],[40,13,40,52],[41,1,41,12],[41,13,41,52],[34,1,34,3],[34,4,34,7],[34,8,34,21],[34,22,34,35],[34,36,34,39],[34,40,34,45],[32,46,32,52],[33,1,33,3],[33,4,33,7],[33,8,33,21],[33,22,33,35],[33,36,33,39],[33,40,33,45],[33,46,33,52],[32,1,32,3],[32,4,32,7],[32,8,32,21],[32,22,32,35],[32,36,32,39],[32,40,32,45],[30,46,30,52],[31,1,31,3],[31,4,31,7],[31,8,31,21],[31,22,31,35],[31,36,31,39],[31,40,31,45],[31,46,31,52],[30,1,30,3],[30,4,30,7],[30,8,30,21],[30,22,30,35],[30,36,30,39],[30,40,30,45],[28,46,28,52],[29,1,29,3],[29,4,29,7],[29,8,29,21],[29,22,29,35],[29,36,29,39],[29,40,29,45],[29,46,29,52],[28,1,28,3],[28,4,28,7],[28,8,28,21],[28,22,28,35],[28,36,28,39],[28,40,28,45],[25,1,25,52],[26,1,27,3],[26,4,27,7],[26,8,26,21],[26,22,26,35],[26,36,27,39],[26,40,27,45],[26,46,27,52],[27,8,27,21],[27,22,27,35],[21,46,21,52],[22,1,22,3],[22,4,22,7],[22,8,22,21],[22,22,22,35],[22,36,22,39],[22,40,22,45],[22,46,22,52],[21,1,21,3],[21,4,21,7],[21,8,21,21],[21,22,21,35],[21,36,21,39],[21,40,21,45],[19,46,19,52],[20,1,20,3],[20,4,20,7],[20,8,20,21],[20,22,20,35],[20,36,20,39],[20,40,20,45],[20,46,20,52],[19,1,19,3],[19,4,19,7],[19,8,19,21],[19,22,19,35],[19,36,19,39],[19,40,19,45],[16,1,16,3],[16,4,16,7],[16,8,16,21],[16,22,16,35],[16,36,16,39],[16,40,16,45],[16,46,16,52],[17,46,17,52],[18,1,18,3],[18,4,18,7],[18,8,18,21],[18,22,18,35],[18,36,18,39],[18,40,18,45],[18,46,18,52],[17,1,17,3],[17,4,17,7],[17,8,17,21],[17,22,17,35],[17,36,17,39],[17,40,17,45],[9,55,9,108],[11,1,11,52],[12,1,12,52],[13,1,14,3],[13,4,14,7],[13,8,13,21],[13,22,13,35],[13,36,14,39],[13,40,14,45],[13,46,14,52],[0,45,0,53],[1,1,4,52],[5,1,5,52],[7,1,7,21],[8,1,8,52],[9,1,9,52],[14,8,14,21],[14,22,14,35],[15,1,15,3],[15,4,15,7],[15,8,15,21],[15,22,15,35],[15,36,15,39],[15,40,15,45],[15,46,15,52]]}
[null,null,null,null,null,null,null,null,null,null,null,null,null,null,null,null,null,null,null,null,null,null,null,null,null,null,null,null,null,null,null,null,null,null,null,null,null,null,null,null,null,null,null,null,null,"手書き・PDFは不可"]
[null,{"$f":"IT運用有_設定申込書!B2","v":"IT運用有【様式8Y】ギガらくルーター_設定変更申込書"}]
[]
[]
[]
[null,"【別紙2】DHCP設定"]
[null,null,null,null,null,null,null,null,null,null,null,null,null,null,null,null,null,null,null,null,null,null,null,null,null,null,null,null,null,null,null,null,null,null,null,null,null,null,null,null,null,null,null,null,null,null,null,{"$f":"IT運用有_設定申込書!AV6","v":"Ver1.0(2026.03.02～)"}]
[null," DHCPサーバー設定"]
[null,"・【別紙1】ポート・VLAN設定の②IPアドレス設定で設定した各LANインターフェース（ネットワークセグメント）毎にDHCP設定願います。\n・LAN1のみを利用する場合（設定申込書のLAN1に記載があり、【別紙1】の記載がない場合）は、LAN1にDHCP設定願います。"]
[null,"・DHCPサーバーとして使用する場合（DHCPサーバーを選択）\n　 - DHCP払出範囲： 必須項目です。IPアドレスを払い出す範囲の開始と終了アドレスを記入願います。\n　 - DHCP払出除外範囲： 任意項目です。払出範囲から除外する開始と終了アドレスを記載願います。（※複数記載する場合は同セルに改行して記載願います）\n　 - Lease Time： 必須項目です。払出すIPアドレスの有効期限を設定願います。\n　 - DNS変更： 任意項目です。DNSサーバーの宛先(参照先）を変更したい場合に入力してください。\n　　　　　　　　　　　※複数指定する場合は同セルにプライマリ、セカンダリの順に記入願います。\n　　　　　　　　　　　※デフォルト（空欄時）は本機器がDNSリカーシブサーバーとして機能します。\n・DHCPリレーエージェントとして使用する場合（DHCPリレーを選択）\n　 - 備考欄にDHCPサーバーのIPアドレスを記入願います。（必須項目です）\n・DHCP機能を使用しない場合（DHCP停止を選択）\n　 - 当該のLANインターフェース（ネットワークセグメント）についてDHCP機能を停止します。"]
[]
[null,"■Accessポート"]
[null,"・【別紙1】ポート・VLAN設定の「②IPアドレス設定」にて、「Type」を「Access」と設定したインターフェースに対するDHCP設定を記入願います。\n・１つのインターフェースに対して１行で記入願います。"]
[null,"インターフェース",null,null,"DHCP種別",null,null,null,"DHCP払出範囲",null,null,null,null,null,null,null,null,null,null,null,null,null,"DHCP払出除外範囲",null,null,null,null,null,null,null,null,null,null,null,null,null,"Lease Time",null,null,null,"DNS変更\n(複数指定可）",null,null,null,null,null,"備考"]
[null,null,null,null,null,null,null,null,"開始～終了（複数指定可）",null,null,null,null,null,null,null,null,null,null,null,null,null,"開始～終了（複数指定可）"]
[null,"例",null,null,"DHCPサーバー",null,null,null,"192.168.100.1～192.168.100.254",null,null,null,null,null,null,null,null,null,null,null,null,null,"192.168.100.10～192.168.100.20\n192.168.100.110～192.168.100.120",null,null,null,null,null,null,null,null,null,null,null,null,null,"1日(default)",null,null,null,"8.8.8.8\n8.8.4.4"]
[null,"例",null,null,"DHCPリレー",null,null,null,null,null,null,null,null,null,null,null,null,null,null,null,null,null,null,null,null,null,null,null,null,null,null,null,null,null,null,null,null,null,null,null,null,null,null,null,null,null,"192.168.100.100"]
[null,"LAN1",null,null,"DHCP停止"]
[null,"LAN4",null,null,"DHCP停止"]
[null,"LAN5",null,null,"DHCP停止"]
[null,"LAN6",null,null,"DHCP停止"]
[null,"LAN7",null,null,"DHCP停止"]
[null,"LAN8",null,null,"DHCP停止",null,null,null,null,null,null,null,null,null,null,null,null,null,null,null,null,null,null,null,null,null,null,null,null,null,null,null,null,null,null,null,null,null,null,null,null,null,null,null,null,null,"利用不可"]
[]
[null,"■Trunkポート"]
[null,"・【別紙1】ポート・VLAN設定の「②IPアドレス設定」にて、「Type」を「Trunk」と設定したインターフェースに対するDHCP設定を記入願います。\n・１つのインターフェースに対して１行で記入願います。"]
[null,"インターフェース",null,null,"DHCP種別",null,null,null,"DHCP払出範囲",null,null,null,null,null,null,null,null,null,null,null,null,null,"DHCP払出除外範囲",null,null,null,null,null,null,null,null,null,null,null,null,null,"Lease Time",null,null,null,"DNS変更\n(複数指定可）",null,null,null,null,null,"備考"]
[null,null,null,null,null,null,null,null,"開始～終了（複数指定可）",null,null,null,null,null,null,null,null,null,null,null,null,null,"開始～終了（複数指定可）"]
[null,"例\nLAN1/1",null,null,"DHCPサーバー",null,null,null,"192.168.100.1～192.168.100.254",null,null,null,null,null,null,null,null,null,null,null,null,null,"192.168.100.10～192.168.100.20\n192.168.100.110～192.168.100.120",null,null,null,null,null,null,null,null,null,null,null,null,null,"1日(default)",null,null,null,"8.8.8.8\n8.8.4.4"]
[null,"例\nLAN1/1",null,null,"DHCPリレー",null,null,null,null,null,null,null,null,null,null,null,null,null,null,null,null,null,null,null,null,null,null,null,null,null,null,null,null,null,null,null,null,null,null,null,null,null,null,null,null,null,"192.168.100.100"]
[null,null,null,null,"DHCP停止"]
[null,null,null,null,"DHCP停止"]
[null,null,null,null,"DHCP停止"]
[null,null,null,null,"DHCP停止"]
[null,null,null,null,"DHCP停止"]
[null,"※記入欄が足りない場合、行を追加してください。（推奨：100件まで）"]
[]
[]
[null," クライアント毎へ固定IP払い出しの設定"]
[null,"・VPN装置のDHCPサーバー機能を使い、特定クライアントに対して固定IPの払出を行う場合に記入願います。\n・払出可能なIPアドレスをすべて払出してしまった場合でも、固定IP払出設定したIPアドレスが払い出されて使用されることはありません。"]
[null,"クライアントMACアドレス",null,null,null,null,null,null,null,null,null,null,null,"必須項目です。固定IPアドレスを払い出したいクライアント端末のMACアドレスを指定。\n（：コロンを含めて入力願います。）"]
[null,"クライアントIPv4固定アドレス",null,null,null,null,null,null,null,null,null,null,null,"必須項目です。指定クライアントに払い出す固定IPアドレスを指定。\n払い出すIPアドレスはスコープNo.で設定したインターフェースのDHCP払出範囲内である必要があります。"]
[null,"インターフェース",null,null,null,null,null,null,null,null,null,null,null,"必須項目です。指定クライアントに払い出す固定IPアドレスが含まれるLANインターフェースまたはVLANインターフェースを指定。\n払い出すIPアドレスは各インターフェースのDHCP払出範囲内である必要があります。"]
[]
[null,"No.",null,"クライアント\nMACアドレス",null,null,null,null,null,null,null,null,null,null,null,"クライアント\nIPv4固定アドレス",null,null,null,null,null,null,null,"インターフェース",null,null,null,null,"備考"]
[null,"例",null,"xx:xx:xx:xx:xx:xx",null,null,null,null,null,null,null,null,null,null,null,"192.168.100.200",null,null,null,null,null,null,null,"LAN1"]
[null,"例",null,"xx:xx:xx:xx:xx:xx",null,null,null,null,null,null,null,null,null,null,null,"192.168.100.200",null,null,null,null,null,null,null,"LAN1/1"]
[null,1]
[null,2]
[null,3]
[null,4]
[null,5]
[null,6]
[null,7]
[null,8]
[null,9]
[null,10]
[null,11]
[null,12]
[null,13]
[null,14]
[null,15]
[null,null,"※記入欄が足りない場合、行を追加してください。（推奨：100件まで）"]
[]
[]
[null,"備考欄"]

{"sheet":"IT運用有_【別紙3】スタティックルート設定","index":6,"n_rows":26,"n_cols":48,"rows_kept":26,"cut":false,"hidden":true,"merged":[[0,45,0,53],[5,1,5,52],[1,1,4,52],[25,1,26,52],[27,1,34,52],[20,1,20,2],[20,3,20,15],[20,16,20,23],[19,1,19,2],[19,3,19,15],[19,16,19,23],[21,1,21,2],[21,3,21,15],[21,16,21,23],[18,16,18,23],[17,1,17,2],[18,1,18,2],[18,3,18,15],[15,1,15,2],[15,3,15,15],[15,16,15,23],[17,3,17,15],[17,16,17,23],[16,1,16,2],[16,3,16,15],[16,16,16,23],[14,1,14,2],[14,3,14,15],[14,16,14,23],[10,48,10,93],[13,1,13,2],[13,3,13,15],[13,16,13,23],[12,1,12,2],[12,3,12,15],[12,16,12,23],[11,1,11,2],[11,3,11,15],[11,16,11,23],[7,1,7,21],[8,1,8,52],[10,1,10,2],[10,3,10,15],[10,16,10,23]]}
[null,null,null,null,null,null,null,null,null,null,null,null,null,null,null,null,null,null,null,null,null,null,null,null,null,null,null,null,null,null,null,null,null,null,null,null,null,null,null,null,null,null,null,null,null,"手書き・PDFは不可"]
[null,{"$f":"IT運用有_設定申込書!B2","v":"IT運用有【様式8Y】ギガらくルーター_設定変更申込書"}]
[]
[]
[]
[null,"【別紙3】スタティックルート設定"]
[null,null,null,null,null,null,null,null,null,null,null,null,null,null,null,null,null,null,null,null,null,null,null,null,null,null,null,null,null,null,null,null,null,null,null,null,null,null,null,null,null,null,null,null,null,null,null,{"$f":"IT運用有_設定申込書!AV6","v":"Ver1.0(2026.03.02～)"}]
[null,"スタティックルート設定"]
[null,"・ギガらくルーター装置に直接接続されていないネットワークへのルートを手動で設定する場合に記入願います。\n　 - 宛先のIPv4ネットワーク： 必須項目です。接続したい宛先サブネットを記入願います。\n　 - ゲートウェイ： 必須項目です。本ネットワークと宛先サブネットの境界にあるL3装置(ルーター等）のIPアドレスを記入願います。\n・対向側のL3装置（ルーター等）にもギガらくルーター装置へのスタティックルート設定が必要ですのでご留意願います。\n　※対向側のL3装置（ルーター等）へのスタティックルート設定はお客様にて実施いただく必要があります。\n・インターネットVPNをご利用の場合で、対向拠点のネットワークとスタティックルートの宛先ネットワークで通信できるようにしたい場合は、【様式2】にて設定願います。\n・ギガらくルーター装置のWAN側に対するスタティックルートを設定することはできません。\n・宛先IPアドレスに該当するルート情報がルーティングテーブルに複数ある場合はロンゲストマッチにてパケットを転送いたします。"]
[]
[null,"No",null,"宛先のIPv4ネットワーク",null,null,null,null,null,null,null,null,null,null,null,null,"ゲートウェイ"]
[null,"例",null,"192.168.100.1/24",null,null,null,null,null,null,null,null,null,null,null,null,"192.168.128.254"]
[null,1]
[null,2]
[null,3]
[null,4]
[null,5]
[null,6]
[null,7]
[null,8]
[null,9]
[null,10]
[null,null,"※記入欄が足りない場合、行を追加してください。（推奨：100件まで）"]
[]
[]
[null,"備考欄"]

{"sheet":"IT運用有_【別紙4】ポートフォワーディング設定","index":7,"n_rows":28,"n_cols":48,"rows_kept":28,"cut":false,"hidden":true,"merged":[[17,33,17,41],[23,33,23,41],[10,33,10,41],[12,33,12,41],[14,33,14,41],[15,33,15,41],[16,33,16,41],[11,33,11,41],[17,24,17,32],[23,24,23,32],[10,17,10,23],[12,17,12,23],[14,17,14,23],[15,17,15,23],[16,17,16,23],[11,24,11,32],[11,17,11,23],[10,24,10,32],[12,24,12,32],[14,24,14,32],[15,24,15,32],[16,24,16,32],[13,17,13,23],[13,24,13,32],[15,8,15,16],[16,8,16,16],[11,8,11,16],[17,17,17,23],[23,17,23,23],[13,8,13,16],[18,8,18,16],[19,8,19,16],[20,8,20,16],[21,8,21,16],[22,8,22,16],[10,1,11,2],[11,3,11,7],[10,8,10,16],[12,8,12,16],[14,8,14,16],[13,1,13,2],[13,3,13,7],[17,3,17,7],[23,3,23,7],[12,1,12,2],[14,1,14,2],[15,1,15,2],[16,1,16,2],[18,1,18,2],[19,1,19,2],[20,1,20,2],[21,1,21,2],[22,1,22,2],[27,1,28,52],[29,1,36,52],[0,45,0,53],[1,1,4,52],[5,1,5,52],[7,1,7,21],[8,1,8,52],[17,8,17,16],[23,8,23,16],[17,1,17,2],[23,1,23,2],[10,3,10,7],[12,3,12,7],[14,3,14,7],[15,3,15,7],[16,3,16,7],[18,24,18,32],[19,24,19,32],[20,24,20,32],[21,24,21,32],[22,24,22,32]]}
[null,null,null,null,null,null,null,null,null,null,null,null,null,null,null,null,null,null,null,null,null,null,null,null,null,null,null,null,null,null,null,null,null,null,null,null,null,null,null,null,null,null,null,null,null,"手書き・PDFは不可"]
[null,{"$f":"IT運用有_設定申込書!B2","v":"IT運用有【様式8Y】ギガらくルーター_設定変更申込書"}]
[]
[]
[]
[null,"【別紙7】ポートフォワーディング設定"]
[null,null,null,null,null,null,null,null,null,null,null,null,null,null,null,null,null,null,null,null,null,null,null,null,null,null,null,null,null,null,null,null,null,null,null,null,null,null,null,null,null,null,null,null,null,null,null,{"$f":"IT運用有_設定申込書!AV6","v":"Ver1.0(2026.03.02～)"}]
[null,"ポートフォワーディング設定"]
[null,"・ギガらくルーター装置のWAN側からの通信を特定のポート番号に基づいて、LAN側の機器（サーバーやPCなど）へ転送させたい場合に設定願います。\n・本機能はPPPoEまたはIPoEの(固定IPタイプ）回線でのみご利用可能です。（PPPoEまたはIPoEの(動的IPタイプ)ではご利用いただけません。）\n　 - プロトコル： 必須項目です。下表のとおり対象のプロトコルを４種類から選択願います。\n　　　　　　　　　　　ICMPまたはESPを選択した場合は、「PublicPort」および「Local Port」は「Any」と記入願います。\n　 - Public Port： 必須項目です。転送対象のギガらくルーター装置のWAN側のポート番号を記入願います。（※記入できる形式は下表のとおりです）\n　 - 転送先LANIPアドレス： 必須項目です。転送先のLAN側機器のIPアドレスを記入願います。\n　 - Local Port： 必須項目です。LAN側機器へ転送する際に使用するポート番号を記入願います。\n・PublicPortの範囲とLocalPort範囲は一致するように設定願います（1対1NAT）\n・ロードバランシング設定が有効な場合、本機能はご利用いただけません。\n・インターネットVPNまたはリモートアクセスを利用している場合、ESPパケットのポートフォワーディングはご利用いただけません。"]
[]
[null,"No",null,"プロトコル",null,null,null,null,"Public Port",null,null,null,null,null,null,null,null,"転送先LAN IPアドレス",null,null,null,null,null,null,"Local Port",null,null,null,null,null,null,null,null,"備考"]
[null,null,null,"下記から選択\n・TCP\n・UDP\n・ESP\n・ICMP",null,null,null,null,"下記の形式で入力可能\n①シングルポート （8000）\n②カンマ区切り （8000,8010）\n③範囲指定 （8000-8100）\n④全ポート（Any）\n※②③は同時指定も可",null,null,null,null,null,null,null,null,"転送先の\nLAN側機器のIPアドレス",null,null,null,null,null,null,"下記の形式で入力可能\n①シングルポート （8000）\n②カンマ区切り （8000,8010）\n③範囲指定 （8000-8100）\n④全ポート（Any）\n※②③は同時指定も可"]
[null,"例",null,"TCP",null,null,null,null,"8000,8010,8100-8200",null,null,null,null,null,null,null,null,"192.168.1.100",null,null,null,null,null,null,"8000,8010,8100-8200"]
[null,"例",null,"ICMP",null,null,null,null,"Any",null,null,null,null,null,null,null,null,"192.168.1.100",null,null,null,null,null,null,"Any"]
[null,1]
[null,2]
[null,3]
[null,4]
[null,5]
[null,6]
[null,7]
[null,8]
[null,9]
[null,10]
[null,null,"※記入欄が足りない場合、行を追加してください。（推奨：100件まで）"]
[]
[]
[null,"備考欄"]

{"sheet":"IT運用有_【別紙5】ロードバランシング設定","index":8,"n_rows":15,"n_cols":48,"rows_kept":15,"cut":false,"hidden":true,"merged":[[14,1,15,52],[16,1,23,52],[10,1,10,6],[10,7,10,14],[10,15,10,22],[11,1,11,6],[11,7,11,14],[11,15,11,22],[0,45,0,53],[1,1,4,52],[5,1,5,52],[7,1,7,21],[8,1,8,52]]}
[null,null,null,null,null,null,null,null,null,null,null,null,null,null,null,null,null,null,null,null,null,null,null,null,null,null,null,null,null,null,null,null,null,null,null,null,null,null,null,null,null,null,null,null,null,"手書き・PDFは不可"]
[null,{"$f":"IT運用有_設定申込書!B2","v":"IT運用有【様式8Y】ギガらくルーター_設定変更申込書"}]
[]
[]
[]
[null,"【別紙5】ロードバランシング設定"]
[null,null,null,null,null,null,null,null,null,null,null,null,null,null,null,null,null,null,null,null,null,null,null,null,null,null,null,null,null,null,null,null,null,null,null,null,null,null,null,null,null,null,null,null,null,null,null,{"$f":"IT運用有_設定申込書!AV6","v":"Ver1.0(2026.03.02～)"}]
[null,"ロードバランシング設定"]
[null,"・WAN1およびWAN2を利用している場合に、WAN1とWAN2の両方を使用しインターネット通信を負荷分散させたい場合に設定します。\n・ロードバランシング機能を有効にする場合、「インターネットVPN」、「リモートアクセス」および「ポートフォワーディング」は利用できなくなりますのでご留意願います。\n・本機能を利用する場合は、本画面での設定に加えて「ローカル設定画面」および「ポート・VLAN設定」にて、WAN2を利用するための設定を投入する必要があります。\n　 - 「ローカル設定画面」にて WAN2のインターネット接続設定、「ポート・VLAN設定」にて WAN2(LAN3)用の物理ポート設定が必要\n　　 そのうえで、「有効/無効」にて「有効」を選択し、WAN1、WAN2それぞれ通信を分散させる目安の割合を「1～10」で設定願います。\n　 - 例）WAN1： 5、WAN2： 1　と設定した場合は、LAN側に接続された端末は、インターネットアクセスの際にWAN1とWAN2を5:1の割合で使用します。\n・WAN1のインターネットアクセスができなくなった場合はWAN2のみの利用、WAN2のインターネットアクセスができなくなった場合はWAN1のみの利用となります。\n　（WAN1またはWAN2のインターネットアクセスが復旧すると自動で通信が負荷分散される状態に戻ります。）\n・「無効」となっている場合は、WAN1、WAN2はアクティブ・スタンバイで動作します。（WAN1：アクティブ、WAN2：スタンバイ）\n"]
[]
[null,"有効/無効",null,null,null,null,null,"WAN1の割合\n (weight)",null,null,null,null,null,null,null,"WAN2の割合\n (weight)"]
[null,"無効"]
[]
[]
[null,"備考欄"]

{"sheet":"IT運用有_【別紙6】L3FW・帯域制御設定","index":9,"n_rows":48,"n_cols":50,"rows_kept":48,"cut":false,"hidden":true,"merged":[[10,32,10,48],[23,24,23,31],[23,32,23,40],[23,41,23,48],[10,1,12,2],[12,3,12,6],[12,7,12,10],[12,11,12,14],[12,15,12,23],[12,24,12,31],[12,32,12,40],[12,41,12,48],[11,15,11,23],[10,3,11,6],[23,1,23,2],[23,3,23,6],[20,32,20,40],[20,41,20,48],[22,1,22,2],[22,3,22,6],[22,15,22,23],[22,24,22,31],[22,32,22,40],[22,41,22,48],[21,1,21,2],[21,3,21,6],[21,7,21,10],[21,11,21,14],[21,15,21,23],[21,24,21,31],[21,32,21,40],[20,3,20,6],[20,7,20,10],[20,11,20,14],[0,45,0,53],[7,1,7,21],[19,1,19,2],[24,1,24,2],[13,1,13,2],[15,1,15,2],[16,1,16,2],[17,1,17,2],[18,1,18,2],[24,41,24,48],[24,32,24,40],[19,41,19,48],[19,3,19,6],[19,7,19,10],[19,11,19,14],[19,15,19,23],[19,24,19,31],[22,7,22,10],[22,11,22,14],[16,41,16,48],[16,3,16,6],[16,7,16,10],[16,11,16,14],[16,15,16,23],[16,24,16,31],[16,32,16,40],[19,32,19,40],[24,3,24,6],[24,7,24,10],[24,11,24,14],[24,15,24,23],[24,24,24,31],[18,41,18,48],[18,3,18,6],[18,7,18,10],[18,11,18,14],[18,15,18,23],[18,24,18,31],[18,32,18,40],[21,41,21,48],[23,7,23,10],[23,11,23,14],[23,15,23,23],[11,32,11,40],[11,41,11,48],[15,41,15,48],[15,3,15,6],[15,7,15,10],[15,11,15,14],[15,15,15,23],[15,24,15,31],[15,32,15,40],[13,41,13,48],[13,3,13,6],[13,7,13,10],[13,11,13,14],[13,15,13,23],[13,24,13,31],[13,32,13,40],[40,1,40,2],[41,1,41,2],[42,1,42,2],[43,1,43,2],[28,1,28,21],[10,7,11,10],[10,11,11,14],[11,24,11,31],[10,15,10,31],[20,1,20,2],[20,15,20,23],[20,24,20,31],[31,1,32,2],[33,1,33,2],[34,1,34,2],[35,1,35,2],[36,1,36,2],[37,1,37,2],[38,1,38,2],[39,1,39,2],[31,3,31,13],[32,3,32,13],[35,20,35,23],[35,24,35,31],[10,49,11,52],[12,49,12,52],[13,49,13,52],[15,49,15,52],[16,49,16,52],[17,49,17,52],[18,49,18,52],[19,49,19,52],[20,49,20,52],[34,24,34,31],[34,32,34,37],[35,3,35,13],[35,14,35,19],[21,49,21,52],[22,49,22,52],[23,49,23,52],[24,49,24,52],[14,1,14,2],[14,3,14,6],[14,7,14,10],[14,15,14,23],[14,32,14,40],[14,41,14,48],[14,24,14,31],[14,49,14,52],[14,11,14,14],[17,41,17,48],[17,3,17,6],[17,7,17,10],[17,11,17,14],[17,15,17,23],[17,24,17,31],[17,32,17,40],[36,32,36,37],[37,3,37,13],[37,14,37,19],[37,20,37,23],[37,24,37,31],[37,32,37,37],[47,1,48,52],[49,1,56,52],[31,14,31,19],[32,20,32,23],[31,20,31,23],[32,14,32,19],[31,24,31,31],[32,24,32,31],[31,32,31,37],[32,32,32,37],[33,3,33,13],[33,14,33,19],[33,20,33,23],[33,24,33,31],[33,32,33,37],[34,3,34,13],[34,14,34,19],[34,20,34,23],[43,3,43,13],[43,14,43,19],[43,20,43,23],[43,24,43,31],[43,32,43,37],[40,3,40,13],[40,14,40,19],[40,20,40,23],[40,24,40,31],[40,32,40,37],[41,3,41,13],[41,14,41,19],[41,20,41,23],[41,24,41,31],[41,32,41,37],[1,1,4,52],[5,1,5,52],[8,1,8,52],[29,1,29,52],[42,3,42,13],[42,14,42,19],[42,20,42,23],[42,24,42,31],[42,32,42,37],[38,3,38,13],[38,14,38,19],[38,20,38,23],[38,24,38,31],[38,32,38,37],[39,3,39,13],[39,14,39,19],[39,20,39,23],[39,24,39,31],[39,32,39,37],[35,32,35,37],[36,3,36,13],[36,14,36,19],[36,20,36,23],[36,24,36,31]]}
[null,null,null,null,null,null,null,null,null,null,null,null,null,null,null,null,null,null,null,null,null,null,null,null,null,null,null,null,null,null,null,null,null,null,null,null,null,null,null,null,null,null,null,null,null,"手書き・PDFは不可"]
[null,{"$f":"IT運用有_設定申込書!B2","v":"IT運用有【様式8Y】ギガらくルーター_設定変更申込書"}]
[]
[]
[]
[null,"【別紙6】L3FW・帯域制御設定"]
[null,null,null,null,null,null,null,null,null,null,null,null,null,null,null,null,null,null,null,null,null,null,null,null,null,null,null,null,null,null,null,null,null,null,null,null,null,null,null,null,null,null,null,null,null,null,null,{"$f":"IT運用有_設定申込書!AV6","v":"Ver1.0(2026.03.02～)"}]
[null,"①L3 ファイアウォール設定（Outbound rule）"]
[null,"・特定の送信元アドレスから特定の宛先アドレスに対する通信制限を設定します。\n・Outbound ruleとして設定できます。（Inbound ruleは設定できません。）\n・WAN⇒LANへの通信は基本的にはすべて遮断します（ただし、サービス運用上必要な通信等一部の通信は許可しています）\n・「インターフェース」は宛先アドレスに合わせて記入願います。\n　 - WAN（インターネット）あての通信の場合（回線冗長をしている場合はWAN1,WAN2両方の通信が対象となります）：WAN\n　 - Accessポート設定のLANインターフェース（本装置のLAN側）あての通信の場合：LANインターフェース名（例：LAN1）\n　 - Trunkポート設定のLANインターフェース（本装置のLAN側）あての通信の場合：VLANインターフェース名（例：LAN1/1）\n　 - インターネットVPNの対向拠点のネットワークあての通信の場合：VPN"]
[]
[null,"No",null,"適用番号",null,null,null,"ポリシー",null,null,null,"プロトコル",null,null,null,"送信元アドレス",null,null,null,null,null,null,null,null,null,null,null,null,null,null,null,null,"宛先アドレス",null,null,null,null,null,null,null,null,null,null,null,null,null,null,null,null,"インターフェース"]
[null,null,null,null,null,null,null,null,null,null,null,null,null,null,null,"IPアドレス/FQDN",null,null,null,null,null,null,null,null,"ポート番号",null,null,null,null,null,null,null,"IPアドレス/FQDN",null,null,null,null,null,null,null,null,"ポート番号"]
[null,null,null,"数字が若い順に適用されます",null,null,null,"下記から選択\n・許可\n・禁止",null,null,null,"下記から選択\n・Any\n・TCP\n・UDP\n・ESP\n・ICMP",null,null,null,"下記の形式で入力可能\n①IPアドレス(ipV4,IPv6)\n②CIDR(ipV4,IPv6)\n③FQDN\n※①はカンマ区切り、範囲指定も可能",null,null,null,null,null,null,null,null,"下記の形式で入力可能\n①シングルポート （8000）\n②カンマ区切り （8000,8010）\n③範囲指定 （8000-8100）\n④全ポート（Any）\n※②③は同時指定も可",null,null,null,null,null,null,null,"下記の形式で入力可能\n①IPアドレス(ipV4,IPv6)\n②CIDR(ipV4,IPv6)\n③FQDN\n※①はカンマ区切り、範囲指定も可能",null,null,null,null,null,null,null,null,"下記の形式で入力可能\n①シングルポート （8000）\n②カンマ区切り （8000,8010）\n③範囲指定 （8000-8100）\n④全ポート（Any）\n※②③は同時指定も可"]
[null,"例",null,1,null,null,null,"禁止",null,null,null,"Aｎｙ",null,null,null,"192.168.100.1,192.168.100.100-192.168.100.110",null,null,null,null,null,null,null,null,"8000,8010,8100-8200",null,null,null,null,null,null,null,"google.com",null,null,null,null,null,null,null,null,"Any",null,null,null,null,null,null,null,"WAN"]
[null,"例",null,2,null,null,null,"禁止",null,null,null,"TCP",null,null,null,"192.168.100.1/24",null,null,null,null,null,null,null,null,"Any",null,null,null,null,null,null,null,"www.sample.com",null,null,null,null,null,null,null,null,7000,null,null,null,null,null,null,null,"WAN"]
[null,1]
[null,2]
[null,3]
[null,4]
[null,5]
[null,6]
[null,7]
[null,8]
[null,9]
[null,10]
[null,null,"※記入欄が足りない場合、行を追加してください。（推奨100件まで）"]
[]
[]
[null,"②帯域制御設定"]
[null,"・LAN側からWAN側に対する上りの通信に対して帯域制御を設定できます。（WAN側からLAN側への下りの通信は対象外です。）\n・回線冗長をしている場合はWAN1,WAN2両方の通信が対象となります。（WAN1のみ、WAN2のみの指定はできません。）"]
[]
[null,"No",null,"宛先アドレス",null,null,null,null,null,null,null,null,null,null,"インターフェース",null,null,null,null,null,"プロトコル",null,null,null,"ポート番号",null,null,null,null,null,null,null,"通信速度（Mbps）"]
[null,null,null,"下記の形式で入力可能\n①IPアドレス(ipV4,IPv6)\n②CIDR(ipV4,IPv6)\n③FQDN\n※①はカンマ区切り、範囲指定も可能",null,null,null,null,null,null,null,null,null,null,"WANインターフェースのみ指定可能",null,null,null,null,null,"下記から選択\n・Any\n・TCP\n・UDP\n・ESP\n・ICMP",null,null,null,"下記の形式で入力可能\n①8000 （シングルポート）\n②8000,8010（カンマ区切り）\n③8000-8100（範囲指定）\n④Any（全ポート）\n※②③は同時指定も可"]
[null,"例",null,"sample.com",null,null,null,null,null,null,null,null,null,null,"WAN",null,null,null,null,null,"Any",null,null,null,"Any",null,null,null,null,null,null,null,50]
[null,1]
[null,2]
[null,3]
[null,4]
[null,5]
[null,6]
[null,7]
[null,8]
[null,9]
[null,10]
[null,null,"※記入欄が足りない場合、行を追加してください。（推奨100件まで）"]
[]
[]
[null,"備考欄"]

{"sheet":"IT運用有_【別紙7】リモートアクセス設定","index":10,"n_rows":143,"n_cols":48,"rows_kept":143,"cut":false,"hidden":true,"merged":[[0,45,0,53],[1,1,4,52],[5,1,5,52],[8,2,8,52],[34,43,34,52],[35,27,35,28],[35,29,35,42],[35,43,35,52],[30,1,30,52],[33,43,33,52],[14,1,14,26],[14,27,14,38],[15,1,15,26],[15,27,15,38],[22,44,23,52],[26,44,26,52],[23,36,23,43],[24,28,24,35],[24,36,24,43],[25,28,25,35],[25,36,25,43],[26,28,26,35],[26,36,26,43],[25,20,25,27],[39,43,39,52],[36,43,36,52],[45,43,45,52],[44,27,44,28],[44,29,44,42],[44,43,44,52],[40,27,40,28],[40,29,40,42],[37,43,37,52],[42,27,42,28],[42,29,42,42],[45,29,45,42],[40,43,40,52],[41,27,41,28],[41,29,41,42],[41,43,41,52],[38,29,38,42],[38,43,38,52],[39,27,39,28],[39,29,39,42],[42,43,42,52],[43,27,43,28],[43,29,43,42],[43,43,43,52],[142,1,143,52],[144,1,151,52],[58,1,58,2],[59,1,59,2],[60,1,60,2],[61,1,61,2],[62,1,62,2],[63,1,63,2],[58,27,58,28],[59,27,59,28],[60,27,60,28],[61,27,61,28],[62,27,62,28],[63,27,63,28],[58,3,58,16],[58,17,58,26],[59,3,59,16],[59,17,59,26],[60,3,60,16],[60,17,60,26],[62,3,62,16],[62,17,62,26],[63,3,63,16],[63,17,63,26],[16,1,16,26],[22,20,23,27],[24,20,24,27],[22,28,22,43],[23,28,23,35],[43,1,43,2],[41,3,41,16],[41,17,41,26],[42,3,42,16],[42,17,42,26],[43,3,43,16],[43,17,43,26],[38,1,38,2],[39,1,39,2],[40,1,40,2],[38,17,38,26],[39,3,39,16],[39,17,39,26],[40,3,40,16],[40,17,40,26],[38,3,38,16],[41,1,41,2],[33,29,33,42],[17,1,17,52],[24,44,24,52],[16,27,16,38],[25,1,25,14],[27,1,27,52],[32,1,32,26],[32,27,32,52],[47,1,47,2],[46,29,46,42],[46,43,46,52],[34,27,34,28],[26,1,26,14],[25,15,25,19],[26,15,26,19],[22,15,23,19],[24,15,24,19],[24,1,24,14],[42,1,42,2],[44,1,44,2],[45,1,45,2],[46,1,46,2],[44,3,44,16],[44,17,44,26],[34,29,34,42],[38,27,38,28],[48,1,48,2],[46,27,46,28],[47,27,47,28],[48,27,48,28],[47,3,47,16],[47,17,47,26],[48,3,48,16],[48,17,48,26],[45,3,45,16],[45,17,45,26],[46,3,46,16],[46,17,46,26],[45,27,45,28],[25,44,25,52],[37,17,37,26],[36,1,36,2],[34,3,34,16],[34,17,34,26],[35,3,35,16],[36,29,36,42],[37,3,37,16],[37,27,37,28],[37,29,37,42],[33,17,33,26],[37,1,37,2],[36,27,36,28],[35,1,35,2],[34,1,34,2],[33,1,33,2],[33,27,33,28],[35,17,35,26],[36,3,36,16],[36,17,36,26],[33,3,33,16],[29,1,29,21],[26,20,26,27],[47,29,47,42],[47,43,47,52],[48,29,48,42],[48,43,48,52],[62,29,62,42],[62,43,62,52],[63,29,63,42],[63,43,63,52],[61,3,61,16],[61,17,61,26],[58,29,58,42],[58,43,58,52],[59,29,59,42],[59,43,59,52],[60,29,60,42],[60,43,60,52],[61,29,61,42],[61,43,61,52],[67,29,67,42],[67,43,67,52],[67,1,67,2],[64,27,64,28],[65,27,65,28],[66,27,66,28],[67,27,67,28],[64,3,64,16],[64,17,64,26],[65,3,65,16],[65,17,65,26],[66,3,66,16],[66,17,66,26],[67,3,67,16],[67,17,67,26],[64,1,64,2],[65,1,65,2],[66,1,66,2],[64,29,64,42],[64,43,64,52],[65,29,65,42],[65,43,65,52],[66,29,66,42],[66,43,66,52],[7,1,7,52],[20,1,20,52],[11,1,11,52],[56,1,56,26],[56,27,56,52],[57,1,57,2],[57,3,57,16],[57,17,57,26],[57,27,57,28],[57,29,57,42],[57,43,57,52],[49,1,49,2],[49,3,49,16],[49,17,49,26],[49,27,49,28],[49,29,49,42],[49,43,49,52],[50,1,50,2],[50,3,50,16],[50,17,50,26],[50,27,50,28],[50,29,50,42],[50,43,50,52],[13,1,13,38],[68,1,68,2],[68,3,68,16],[68,17,68,26],[68,27,68,28],[68,29,68,42],[68,43,68,52],[69,1,69,2],[69,3,69,16],[69,17,69,26],[69,27,69,28],[69,29,69,42],[69,43,69,52],[70,1,70,2],[70,3,70,16],[70,17,70,26],[70,27,70,28],[70,29,70,42],[70,43,70,52],[71,1,71,2],[71,3,71,16],[71,17,71,26],[71,27,71,28],[71,29,71,42],[71,43,71,52],[72,1,72,2],[72,3,72,16],[72,17,72,26],[72,27,72,28],[72,29,72,42],[72,43,72,52],[73,1,73,2],[73,3,73,16],[73,17,73,26],[73,27,73,28],[73,29,73,42],[73,43,73,52],[74,1,74,2],[74,3,74,16],[74,17,74,26],[74,27,74,28],[74,29,74,42],[74,43,74,52],[75,1,75,2],[75,3,75,16],[75,17,75,26],[75,27,75,28],[75,29,75,42],[75,43,75,52],[76,1,76,2],[76,3,76,16],[76,17,76,26],[76,27,76,28],[76,29,76,42],[76,43,76,52],[77,1,77,2],[77,3,77,16],[77,17,77,26],[77,27,77,28],[77,29,77,42],[77,43,77,52],[78,1,78,2],[78,3,78,16],[78,17,78,26],[78,27,78,28],[78,29,78,42],[78,43,78,52],[79,1,79,2],[79,3,79,16],[79,17,79,26],[79,27,79,28],[79,29,79,42],[79,43,79,52],[80,1,80,2],[80,3,80,16],[80,17,80,26],[80,27,80,28],[80,29,80,42],[80,43,80,52],[81,1,81,2],[81,3,81,16],[81,17,81,26],[81,27,81,28],[81,29,81,42],[81,43,81,52],[82,1,82,2],[82,3,82,16],[82,17,82,26],[82,27,82,28],[82,29,82,42],[82,43,82,52],[83,1,83,2],[83,3,83,16],[83,17,83,26],[83,27,83,28],[83,29,83,42],[83,43,83,52],[84,1,84,2],[84,3,84,16],[84,17,84,26],[84,27,84,28],[84,29,84,42],[84,43,84,52],[85,1,85,2],[85,3,85,16],[85,17,85,26],[85,27,85,28],[85,29,85,42],[85,43,85,52],[86,1,86,2],[86,3,86,16],[86,17,86,26],[86,27,86,28],[86,29,86,42],[86,43,86,52],[87,1,87,2],[87,3,87,16],[87,17,87,26],[87,27,87,28],[87,29,87,42],[87,43,87,52],[88,1,88,2],[88,3,88,16],[88,17,88,26],[88,27,88,28],[88,29,88,42],[88,43,88,52],[89,1,89,2],[89,3,89,16],[89,17,89,26],[89,27,89,28],[89,29,89,42],[89,43,89,52],[90,1,90,2],[90,3,90,16],[90,17,90,26],[90,27,90,28],[90,29,90,42],[90,43,90,52],[91,1,91,2],[91,3,91,16],[91,17,91,26],[91,27,91,28],[91,29,91,42],[91,43,91,52],[92,1,92,2],[92,3,92,16],[92,17,92,26],[92,27,92,28],[92,29,92,42],[92,43,92,52],[93,1,93,2],[93,3,93,16],[93,17,93,26],[93,27,93,28],[93,29,93,42],[93,43,93,52],[94,1,94,2],[94,3,94,16],[94,17,94,26],[94,27,94,28],[94,29,94,42],[94,43,94,52],[95,1,95,2],[95,3,95,16],[95,17,95,26],[95,27,95,28],[95,29,95,42],[95,43,95,52],[96,1,96,2],[96,3,96,16],[96,17,96,26],[96,27,96,28],[96,29,96,42],[96,43,96,52],[97,1,97,2],[97,3,97,16],[97,17,97,26],[97,27,97,28],[97,29,97,42],[97,43,97,52],[98,1,98,2],[98,3,98,16],[98,17,98,26],[98,27,98,28],[98,29,98,42],[98,43,98,52],[99,1,99,2],[99,3,99,16],[99,17,99,26],[99,27,99,28],[99,29,99,42],[99,43,99,52],[100,1,100,2],[100,3,100,16],[100,17,100,26],[100,27,100,28],[100,29,100,42],[100,43,100,52],[101,1,101,2],[101,3,101,16],[101,17,101,26],[101,27,101,28],[101,29,101,42],[101,43,101,52],[102,1,102,2],[102,3,102,16],[102,17,102,26],[102,27,102,28],[102,29,102,42],[102,43,102,52],[103,1,103,2],[103,3,103,16],[103,17,103,26],[103,27,103,28],[103,29,103,42],[103,43,103,52],[104,1,104,2],[104,3,104,16],[104,17,104,26],[104,27,104,28],[104,29,104,42],[104,43,104,52],[105,1,105,2],[105,3,105,16],[105,17,105,26],[105,27,105,28],[105,29,105,42],[105,43,105,52],[106,1,106,2],[106,3,106,16],[106,17,106,26],[106,27,106,28],[106,29,106,42],[106,43,106,52],[107,1,107,2],[107,3,107,16],[107,17,107,26],[107,27,107,28],[107,29,107,42],[107,43,107,52],[108,1,108,2],[108,3,108,16],[108,17,108,26],[108,27,108,28],[108,29,108,42],[108,43,108,52],[109,1,109,2],[109,3,109,16],[109,17,109,26],[109,27,109,28],[109,29,109,42],[109,43,109,52],[110,1,110,2],[110,3,110,16],[110,17,110,26],[110,27,110,28],[110,29,110,42],[110,43,110,52],[111,1,111,2],[111,3,111,16],[111,17,111,26],[111,27,111,28],[111,29,111,42],[111,43,111,52],[112,1,112,2],[112,3,112,16],[112,17,112,26],[112,27,112,28],[112,29,112,42],[112,43,112,52],[113,1,113,2],[113,3,113,16],[113,17,113,26],[113,27,113,28],[113,29,113,42],[113,43,113,52],[114,17,114,26],[114,27,114,28],[114,29,114,42],[114,43,114,52],[115,1,115,2],[115,3,115,16],[115,17,115,26],[115,27,115,28],[115,29,115,42],[115,43,115,52],[122,1,122,2],[122,3,122,16],[122,17,122,26],[122,27,122,28],[122,29,122,42],[122,43,122,52],[123,1,123,2],[123,3,123,16],[123,17,123,26],[123,27,123,28],[123,29,123,42],[123,43,123,52],[124,1,124,2],[124,3,124,16],[124,17,124,26],[124,27,124,28],[124,29,124,42],[124,43,124,52],[125,1,125,2],[125,3,125,16],[125,17,125,26],[125,27,125,28],[125,29,125,42],[125,43,125,52],[126,1,126,2],[126,3,126,16],[126,17,126,26],[126,27,126,28],[126,29,126,42],[126,43,126,52],[127,1,127,2],[127,3,127,16],[127,17,127,26],[127,27,127,28],[127,29,127,42],[127,43,127,52],[128,1,128,2],[128,3,128,16],[128,17,128,26],[128,27,128,28],[128,29,128,42],[128,43,128,52],[129,1,129,2],[129,3,129,16],[129,17,129,26],[129,27,129,28],[129,29,129,42],[129,43,129,52],[130,1,130,2],[130,3,130,16],[130,17,130,26],[130,27,130,28],[130,29,130,42],[130,43,130,52],[131,1,131,2],[131,3,131,16],[131,17,131,26],[131,27,131,28],[131,29,131,42],[131,43,131,52],[132,1,132,2],[132,3,132,16],[132,17,132,26],[132,27,132,28],[132,29,132,42],[132,43,132,52],[133,1,133,2],[133,3,133,16],[133,17,133,26],[133,27,133,28],[133,29,133,42],[133,43,133,52],[134,1,134,2],[134,3,134,16],[134,17,134,26],[134,27,134,28],[134,29,134,42],[134,43,134,52],[135,1,135,2],[135,3,135,16],[135,17,135,26],[135,27,135,28],[135,29,135,42],[135,43,135,52],[136,1,136,2],[136,3,136,16],[136,17,136,26],[136,27,136,28],[136,29,136,42],[136,43,136,52],[137,1,137,2],[137,3,137,16],[137,17,137,26],[137,27,137,28],[137,29,137,42],[137,43,137,52],[138,1,138,2],[138,3,138,16],[138,17,138,26],[138,27,138,28],[138,29,138,42],[138,43,138,52],[139,1,139,2],[139,3,139,16],[139,17,139,26],[139,27,139,28],[139,29,139,42],[139,43,139,52],[121,1,121,2],[121,3,121,16],[121,17,121,26],[121,27,121,28],[121,29,121,42],[121,43,121,52],[116,1,116,2],[116,3,116,16],[116,17,116,26],[116,27,116,28],[116,29,116,42],[116,43,116,52],[117,1,117,2],[117,3,117,16],[117,17,117,26],[117,27,117,28],[117,29,117,42],[117,43,117,52],[10,1,10,25],[19,1,19,25],[53,1,53,2],[53,3,53,16],[53,17,53,26],[53,27,53,28],[53,29,53,42],[53,43,53,52],[120,1,120,26],[120,27,120,52],[51,1,51,2],[51,3,51,16],[51,17,51,26],[51,27,51,28],[51,29,51,42],[51,43,51,52],[52,1,52,2],[52,3,52,16],[52,17,52,26],[52,27,52,28],[52,29,52,42],[52,43,52,52],[114,1,114,2],[114,3,114,16]]}
[null,null,null,null,null,null,null,null,null,null,null,null,null,null,null,null,null,null,null,null,null,null,null,null,null,null,null,null,null,null,null,null,null,null,null,null,null,null,null,null,null,null,null,null,null,"手書き・PDFは不可"]
[null,{"$f":"IT運用有_設定申込書!B2","v":"IT運用有【様式8Y】ギガらくルーター_設定変更申込書"}]
[]
[]
[]
[null,"【別紙7】リモートアクセス設定"]
[null,null,null,null,null,null,null,null,null,null,null,null,null,null,null,null,null,null,null,null,null,null,null,null,null,null,null,null,null,null,null,null,null,null,null,null,null,null,null,null,null,null,null,null,null,null,null,{"$f":"IT運用有_設定申込書!AV6","v":"Ver1.0(2026.03.02～)"}]
[null,"■ リモートアクセス利用における注意点"]
[null,null,"・本機能はPPPoE（動的IPアドレス、固定IPアドレス）またはIPoE(固定IPタイプ）回線でのみご利用可能です。（IPoE(動的IPタイプ)ではご利用いただけません。）\n・IPoE(固定IPタイプ）回線にて、Windows端末でリモートアクセスする場合には、リモートアクセス端末にて「NATトラバーサル設定」が必要です。\n　※NATトラバーサル設定はお客様にて実施いただきます。\n・利用可能なセッション数は、インターネットVPNとリモートアクセスの合計で98セッションまでです。\n　インターネットVPNと併用してご利用いただく際は、VPNセッション数にご注意ください。\n　 - リモートアクセスでは、リモートアクセス端末１台に対し、VPNセッションを１つ消費します。\n　 - インターネットVPNでは、接続拠点ごとにVPNセッションを１つ消費します。\n・リモートアクセス端末は、IPv4アドレスを用いてインターネット通信が可能な環境である必要があります（※IPv4で接続するため）\n・ロードバランシング設定が有効な場合、本機能はご利用いただけません。\n・回線冗長には対応しておりません。リモートアクセスにはWAN1のみを利用し、WAN1の通信が切断されるとリモート接続も切断されます。"]
[]
[null,"接続先サーバ名設定（DDNS設定）"]
[null,"・PPPoE（動的IPアドレス）回線の場合、接続先サーバ名として使用する「DDNS名」の一部となる「ホスト名」を設定願います。\n  - 記入いただいた「ホスト名」とシステムで自動付与する「ドメイン名」を合わせたものがリモートアクセスの「接続先サーバ名」となります。\n　 　※「DDNS名」はインターネットVPNを利用する場合にも設定が必要となり、リモートアクセスと共通で使用します。\n　　    そのため、すでにインターネットVPN（【様式2Y】）にて設定いただいている場合は記入不要です。（【様式2Y】に記入いただいた値で設定いたします）\n・PPPoE（固定IPアドレス）回線またはIPoE（固定IPアドレス）回線の場合は記入不要です。\n　- これらの回線の場合は、接続先サーバ名はDDNS名ではなく「グローバルIPアドレス」を使用します。\n　 　※PPPoE（固定IPアドレス）回線の場合は、「DDNS名」をご利用いただくことも可能です。"]
[]
[null,"リモートアクセスの接続先DDNS名（ネットボランチDNS名）"]
[null,"ホスト名",null,null,null,null,null,null,null,null,null,null,null,null,null,null,null,null,null,null,null,null,null,null,null,null,null,"ドメイン名"]
[null,"例　Gigaraku-123",null,null,null,null,null,null,null,null,null,null,null,null,null,null,null,null,null,null,null,null,null,null,null,null,null,"（変更不可）"]
[null,null,null,null,null,null,null,null,null,null,null,null,null,null,null,null,null,null,null,null,null,null,null,null,null,null,null,"-シリアル番号.aa0.netvolante.jp"]
[null,"※ホスト名は半角英数字と'-'（ハイフン）が使用でき、63文字以内で設定願います。シリアル番号は機器底面のシールを確認願います。"]
[]
[null,"接続するリモートアクセス端末に払い出すIPアドレスと事前共有キーの設定"]
[null,"・L2TP/IPSecおよびKEv2/IPSecそれぞれの有効・無効、リモートアクセス端末に払い出すIPアドレス、事前共有キーの設定願います。\n・リモートアクセス端末がAndroid端末の場合は、IKEv2/IPSecにて設定願います。そのほかの機種（Windows、Macbook、iPhone）については、L2TP/IPSecをご利用願います。\n・払い出すIPアドレスについて\n　 - 使用するIPアドレスは、L2TP/IPSecおよびKEv2/IPSecの合計で最大98IPアドレスです。\n　 - リモートアクセス端末用のネットワークアドレスのデフォルト値は「192.168.221.0/24」です。任意に変更可能です。\n　 - LANインターフェースに設定しているネットワークアドレスと異なるネットワークアドレスを設定願います。\n　 - インターネットVPNをご利用いただく場合は、他拠点のネットワークアドレスとも異なるネットワークアドレスを設定願います。\n　 - L2TP/IPSecおよびKEv2/IPSecで同一のネットワークアドレスとすることも異なるネットワークアドレスとすることも可能です。\n　　　（デフォルト値はL2TP/IPSecおよびKEv2/IPSec共通で「192.168.221.0/24」です。）\n　 - 払い出すIPアドレス帯はL2TP/IPSecおよびKEv2/IPSecで重複しないようにご設定願います。\n"]
[]
[null,null,null,null,null,null,null,null,null,null,null,null,null,null,null,"有効/無効",null,null,null,null,"ネットワークアドレス/\nネットマスク",null,null,null,null,null,null,null,"リモートアクセス端末のIPアドレス払出範囲",null,null,null,null,null,null,null,null,null,null,null,null,null,null,null,"事前共有キー\n（Pre-Shared Key）"]
[null,null,null,null,null,null,null,null,null,null,null,null,null,null,null,null,null,null,null,null,null,null,null,null,null,null,null,null,"開始",null,null,null,null,null,null,null,"終了"]
[null,"記入例",null,null,null,null,null,null,null,null,null,null,null,null,null,"有効",null,null,null,null,"192.168.221.0/24",null,null,null,null,null,null,null,"192.168.221.1",null,null,null,null,null,null,null,"192.168.221.50",null,null,null,null,null,null,null,12345678]
[null,"L2TP/IPSec\n（WindowsPC, Macbook, iPhone向け）",null,null,null,null,null,null,null,null,null,null,null,null,null,"無効"]
[null,"IKEv2/IPSec\n（Android向け）",null,null,null,null,null,null,null,null,null,null,null,null,null,"無効"]
[null,"・事前共有キーはリモートアクセス端末のVPN設定で使用します。半角英字（大文字、小文字）、数字、-（ハイフン）、@（アットマーク）を使用でき63文字以内で設定願います。"]
[]
[null,"アカウント/パスワード設定"]
[null,"・アカウント、パスワードは半角英字（大文字、小文字）、数字、-（ハイフン）、@（アットマーク）を使用できます。\n・L2TP/IPSec、IKEv2合わせて最大98アカウントまで登録できます。"]
[]
[null,"L2TP/IPSec （WindowsPC, Macbook, iPhone向け）",null,null,null,null,null,null,null,null,null,null,null,null,null,null,null,null,null,null,null,null,null,null,null,null,null,"IKEv2 （Android向け）"]
[null,"No.",null,"アカウント",null,null,null,null,null,null,null,null,null,null,null,null,null,"パスワード",null,null,null,null,null,null,null,null,null,"No.",null,"アカウント\n(IPSecID)",null,null,null,null,null,null,null,null,null,null,null,null,null,"パスワード\n(IPSec事前共有鍵)"]
[null,1,null,null,null,null,null,null,null,null,null,null,null,null,null,null,null,null,null,null,null,null,null,null,null,null,null,1]
[null,2,null,null,null,null,null,null,null,null,null,null,null,null,null,null,null,null,null,null,null,null,null,null,null,null,null,2]
[null,3,null,null,null,null,null,null,null,null,null,null,null,null,null,null,null,null,null,null,null,null,null,null,null,null,null,3]
[null,4,null,null,null,null,null,null,null,null,null,null,null,null,null,null,null,null,null,null,null,null,null,null,null,null,null,4]
[null,5,null,null,null,null,null,null,null,null,null,null,null,null,null,null,null,null,null,null,null,null,null,null,null,null,null,5]
[null,6,null,null,null,null,null,null,null,null,null,null,null,null,null,null,null,null,null,null,null,null,null,null,null,null,null,6]
[null,7,null,null,null,null,null,null,null,null,null,null,null,null,null,null,null,null,null,null,null,null,null,null,null,null,null,7]
[null,8,null,null,null,null,null,null,null,null,null,null,null,null,null,null,null,null,null,null,null,null,null,null,null,null,null,8]
[null,9,null,null,null,null,null,null,null,null,null,null,null,null,null,null,null,null,null,null,null,null,null,null,null,null,null,9]
[null,10,null,null,null,null,null,null,null,null,null,null,null,null,null,null,null,null,null,null,null,null,null,null,null,null,null,10]
[null,11,null,null,null,null,null,null,null,null,null,null,null,null,null,null,null,null,null,null,null,null,null,null,null,null,null,11]
[null,12,null,null,null,null,null,null,null,null,null,null,null,null,null,null,null,null,null,null,null,null,null,null,null,null,null,12]
[null,13,null,null,null,null,null,null,null,null,null,null,null,null,null,null,null,null,null,null,null,null,null,null,null,null,null,13]
[null,14,null,null,null,null,null,null,null,null,null,null,null,null,null,null,null,null,null,null,null,null,null,null,null,null,null,14]
[null,15,null,null,null,null,null,null,null,null,null,null,null,null,null,null,null,null,null,null,null,null,null,null,null,null,null,15]
[null,16,null,null,null,null,null,null,null,null,null,null,null,null,null,null,null,null,null,null,null,null,null,null,null,null,null,16]
[null,17,null,null,null,null,null,null,null,null,null,null,null,null,null,null,null,null,null,null,null,null,null,null,null,null,null,17]
[null,18,null,null,null,null,null,null,null,null,null,null,null,null,null,null,null,null,null,null,null,null,null,null,null,null,null,18]
[null,19,null,null,null,null,null,null,null,null,null,null,null,null,null,null,null,null,null,null,null,null,null,null,null,null,null,19]
[null,20,null,null,null,null,null,null,null,null,null,null,null,null,null,null,null,null,null,null,null,null,null,null,null,null,null,20]
[]
[]
[null,"L2TP/IPSec （WindowsPC, Macbook, iPhone向け）",null,null,null,null,null,null,null,null,null,null,null,null,null,null,null,null,null,null,null,null,null,null,null,null,null,"IKEv2 （Android向け）"]
[null,"No.",null,"アカウント",null,null,null,null,null,null,null,null,null,null,null,null,null,"パスワード",null,null,null,null,null,null,null,null,null,"No.",null,"アカウント\n(IPSecID)",null,null,null,null,null,null,null,null,null,null,null,null,null,"パスワード\n(IPSec事前共有鍵)"]
[null,21,null,null,null,null,null,null,null,null,null,null,null,null,null,null,null,null,null,null,null,null,null,null,null,null,null,21]
[null,22,null,null,null,null,null,null,null,null,null,null,null,null,null,null,null,null,null,null,null,null,null,null,null,null,null,22]
[null,23,null,null,null,null,null,null,null,null,null,null,null,null,null,null,null,null,null,null,null,null,null,null,null,null,null,23]
[null,24,null,null,null,null,null,null,null,null,null,null,null,null,null,null,null,null,null,null,null,null,null,null,null,null,null,24]
[null,25,null,null,null,null,null,null,null,null,null,null,null,null,null,null,null,null,null,null,null,null,null,null,null,null,null,25]
[null,26,null,null,null,null,null,null,null,null,null,null,null,null,null,null,null,null,null,null,null,null,null,null,null,null,null,26]
[null,27,null,null,null,null,null,null,null,null,null,null,null,null,null,null,null,null,null,null,null,null,null,null,null,null,null,27]
[null,28,null,null,null,null,null,null,null,null,null,null,null,null,null,null,null,null,null,null,null,null,null,null,null,null,null,28]
[null,29,null,null,null,null,null,null,null,null,null,null,null,null,null,null,null,null,null,null,null,null,null,null,null,null,null,29]
[null,30,null,null,null,null,null,null,null,null,null,null,null,null,null,null,null,null,null,null,null,null,null,null,null,null,null,30]
[null,31,null,null,null,null,null,null,null,null,null,null,null,null,null,null,null,null,null,null,null,null,null,null,null,null,null,31]
[null,32,null,null,null,null,null,null,null,null,null,null,null,null,null,null,null,null,null,null,null,null,null,null,null,null,null,32]
[null,33,null,null,null,null,null,null,null,null,null,null,null,null,null,null,null,null,null,null,null,null,null,null,null,null,null,33]
[null,34,null,null,null,null,null,null,null,null,null,null,null,null,null,null,null,null,null,null,null,null,null,null,null,null,null,34]
[null,35,null,null,null,null,null,null,null,null,null,null,null,null,null,null,null,null,null,null,null,null,null,null,null,null,null,35]
[null,36,null,null,null,null,null,null,null,null,null,null,null,null,null,null,null,null,null,null,null,null,null,null,null,null,null,36]
[null,37,null,null,null,null,null,null,null,null,null,null,null,null,null,null,null,null,null,null,null,null,null,null,null,null,null,37]
[null,38,null,null,null,null,null,null,null,null,null,null,null,null,null,null,null,null,null,null,null,null,null,null,null,null,null,38]
[null,39,null,null,null,null,null,null,null,null,null,null,null,null,null,null,null,null,null,null,null,null,null,null,null,null,null,39]
[null,40,null,null,null,null,null,null,null,null,null,null,null,null,null,null,null,null,null,null,null,null,null,null,null,null,null,40]
[null,41,null,null,null,null,null,null,null,null,null,null,null,null,null,null,null,null,null,null,null,null,null,null,null,null,null,41]
[null,42,null,null,null,null,null,null,null,null,null,null,null,null,null,null,null,null,null,null,null,null,null,null,null,null,null,42]
[null,43,null,null,null,null,null,null,null,null,null,null,null,null,null,null,null,null,null,null,null,null,null,null,null,null,null,43]
[null,44,null,null,null,null,null,null,null,null,null,null,null,null,null,null,null,null,null,null,null,null,null,null,null,null,null,44]
[null,45,null,null,null,null,null,null,null,null,null,null,null,null,null,null,null,null,null,null,null,null,null,null,null,null,null,45]
[null,46,null,null,null,null,null,null,null,null,null,null,null,null,null,null,null,null,null,null,null,null,null,null,null,null,null,46]
[null,47,null,null,null,null,null,null,null,null,null,null,null,null,null,null,null,null,null,null,null,null,null,null,null,null,null,47]
[null,48,null,null,null,null,null,null,null,null,null,null,null,null,null,null,null,null,null,null,null,null,null,null,null,null,null,48]
[null,49,null,null,null,null,null,null,null,null,null,null,null,null,null,null,null,null,null,null,null,null,null,null,null,null,null,49]
[null,50,null,null,null,null,null,null,null,null,null,null,null,null,null,null,null,null,null,null,null,null,null,null,null,null,null,50]
[null,51,null,null,null,null,null,null,null,null,null,null,null,null,null,null,null,null,null,null,null,null,null,null,null,null,null,51]
[null,52,null,null,null,null,null,null,null,null,null,null,null,null,null,null,null,null,null,null,null,null,null,null,null,null,null,52]
[null,53,null,null,null,null,null,null,null,null,null,null,null,null,null,null,null,null,null,null,null,null,null,null,null,null,null,53]
[null,54,null,null,null,null,null,null,null,null,null,null,null,null,null,null,null,null,null,null,null,null,null,null,null,null,null,54]
[null,55,null,null,null,null,null,null,null,null,null,null,null,null,null,null,null,null,null,null,null,null,null,null,null,null,null,55]
[null,56,null,null,null,null,null,null,null,null,null,null,null,null,null,null,null,null,null,null,null,null,null,null,null,null,null,56]
[null,57,null,null,null,null,null,null,null,null,null,null,null,null,null,null,null,null,null,null,null,null,null,null,null,null,null,57]
[null,58,null,null,null,null,null,null,null,null,null,null,null,null,null,null,null,null,null,null,null,null,null,null,null,null,null,58]
[null,59,null,null,null,null,null,null,null,null,null,null,null,null,null,null,null,null,null,null,null,null,null,null,null,null,null,59]
[null,60,null,null,null,null,null,null,null,null,null,null,null,null,null,null,null,null,null,null,null,null,null,null,null,null,null,60]
[null,61,null,null,null,null,null,null,null,null,null,null,null,null,null,null,null,null,null,null,null,null,null,null,null,null,null,61]
[null,62,null,null,null,null,null,null,null,null,null,null,null,null,null,null,null,null,null,null,null,null,null,null,null,null,null,62]
[null,63,null,null,null,null,null,null,null,null,null,null,null,null,null,null,null,null,null,null,null,null,null,null,null,null,null,63]
[null,64,null,null,null,null,null,null,null,null,null,null,null,null,null,null,null,null,null,null,null,null,null,null,null,null,null,64]
[null,65,null,null,null,null,null,null,null,null,null,null,null,null,null,null,null,null,null,null,null,null,null,null,null,null,null,65]
[null,66,null,null,null,null,null,null,null,null,null,null,null,null,null,null,null,null,null,null,null,null,null,null,null,null,null,66]
[null,67,null,null,null,null,null,null,null,null,null,null,null,null,null,null,null,null,null,null,null,null,null,null,null,null,null,67]
[null,68,null,null,null,null,null,null,null,null,null,null,null,null,null,null,null,null,null,null,null,null,null,null,null,null,null,68]
[null,69,null,null,null,null,null,null,null,null,null,null,null,null,null,null,null,null,null,null,null,null,null,null,null,null,null,69]
[null,70,null,null,null,null,null,null,null,null,null,null,null,null,null,null,null,null,null,null,null,null,null,null,null,null,null,70]
[null,71,null,null,null,null,null,null,null,null,null,null,null,null,null,null,null,null,null,null,null,null,null,null,null,null,null,71]
[null,72,null,null,null,null,null,null,null,null,null,null,null,null,null,null,null,null,null,null,null,null,null,null,null,null,null,72]
[null,73,null,null,null,null,null,null,null,null,null,null,null,null,null,null,null,null,null,null,null,null,null,null,null,null,null,73]
[null,74,null,null,null,null,null,null,null,null,null,null,null,null,null,null,null,null,null,null,null,null,null,null,null,null,null,74]
[null,75,null,null,null,null,null,null,null,null,null,null,null,null,null,null,null,null,null,null,null,null,null,null,null,null,null,75]
[null,76,null,null,null,null,null,null,null,null,null,null,null,null,null,null,null,null,null,null,null,null,null,null,null,null,null,76]
[null,77,null,null,null,null,null,null,null,null,null,null,null,null,null,null,null,null,null,null,null,null,null,null,null,null,null,77]
[null,78,null,null,null,null,null,null,null,null,null,null,null,null,null,null,null,null,null,null,null,null,null,null,null,null,null,78]
[null,79,null,null,null,null,null,null,null,null,null,null,null,null,null,null,null,null,null,null,null,null,null,null,null,null,null,79]
[null,80,null,null,null,null,null,null,null,null,null,null,null,null,null,null,null,null,null,null,null,null,null,null,null,null,null,80]
[]
[]
[null,"L2TP/IPSec （WindowsPC, Macbook, iPhone向け）",null,null,null,null,null,null,null,null,null,null,null,null,null,null,null,null,null,null,null,null,null,null,null,null,null,"IKEv2 （Android向け）"]
[null,"No.",null,"アカウント",null,null,null,null,null,null,null,null,null,null,null,null,null,"パスワード",null,null,null,null,null,null,null,null,null,"No.",null,"アカウント\n(IPSecID)",null,null,null,null,null,null,null,null,null,null,null,null,null,"パスワード\n(IPSec事前共有鍵)"]
[null,81,null,null,null,null,null,null,null,null,null,null,null,null,null,null,null,null,null,null,null,null,null,null,null,null,null,81]
[null,82,null,null,null,null,null,null,null,null,null,null,null,null,null,null,null,null,null,null,null,null,null,null,null,null,null,82]
[null,83,null,null,null,null,null,null,null,null,null,null,null,null,null,null,null,null,null,null,null,null,null,null,null,null,null,83]
[null,84,null,null,null,null,null,null,null,null,null,null,null,null,null,null,null,null,null,null,null,null,null,null,null,null,null,84]
[null,85,null,null,null,null,null,null,null,null,null,null,null,null,null,null,null,null,null,null,null,null,null,null,null,null,null,85]
[null,86,null,null,null,null,null,null,null,null,null,null,null,null,null,null,null,null,null,null,null,null,null,null,null,null,null,86]
[null,87,null,null,null,null,null,null,null,null,null,null,null,null,null,null,null,null,null,null,null,null,null,null,null,null,null,87]
[null,88,null,null,null,null,null,null,null,null,null,null,null,null,null,null,null,null,null,null,null,null,null,null,null,null,null,88]
[null,89,null,null,null,null,null,null,null,null,null,null,null,null,null,null,null,null,null,null,null,null,null,null,null,null,null,89]
[null,90,null,null,null,null,null,null,null,null,null,null,null,null,null,null,null,null,null,null,null,null,null,null,null,null,null,90]
[null,91,null,null,null,null,null,null,null,null,null,null,null,null,null,null,null,null,null,null,null,null,null,null,null,null,null,91]
[null,92,null,null,null,null,null,null,null,null,null,null,null,null,null,null,null,null,null,null,null,null,null,null,null,null,null,92]
[null,93,null,null,null,null,null,null,null,null,null,null,null,null,null,null,null,null,null,null,null,null,null,null,null,null,null,93]
[null,94,null,null,null,null,null,null,null,null,null,null,null,null,null,null,null,null,null,null,null,null,null,null,null,null,null,94]
[null,95,null,null,null,null,null,null,null,null,null,null,null,null,null,null,null,null,null,null,null,null,null,null,null,null,null,95]
[null,96,null,null,null,null,null,null,null,null,null,null,null,null,null,null,null,null,null,null,null,null,null,null,null,null,null,96]
[null,97,null,null,null,null,null,null,null,null,null,null,null,null,null,null,null,null,null,null,null,null,null,null,null,null,null,97]
[null,98,null,null,null,null,null,null,null,null,null,null,null,null,null,null,null,null,null,null,null,null,null,null,null,null,null,98]
[]
[]
[null,"備考欄"]

{"sheet":"IT運用有_【別紙12】ダッシュボード統合設定","index":11,"n_rows":62,"n_cols":48,"rows_kept":62,"cut":false,"hidden":true,"merged":[[10,2,10,16],[10,17,10,36],[11,2,11,37],[16,2,16,8],[16,9,16,36],[7,1,7,35],[8,2,8,35],[22,2,22,6],[22,7,22,10],[22,12,22,14],[22,16,22,18],[22,20,22,25],[22,26,22,36],[17,2,17,8],[17,9,17,36],[18,2,18,8],[18,9,18,36],[19,2,19,8],[19,9,19,36],[26,2,26,6],[26,7,26,21],[26,22,26,34],[26,35,26,39],[27,2,27,6],[27,7,27,21],[27,22,27,34],[27,35,27,39],[24,2,24,6],[24,7,24,21],[24,22,24,34],[24,35,24,39],[25,2,25,6],[25,7,25,21],[25,22,25,34],[25,35,25,39],[30,2,30,6],[30,7,30,21],[30,22,30,34],[30,35,30,39],[31,2,31,6],[31,7,31,21],[31,22,31,34],[31,35,31,39],[28,2,28,6],[28,7,28,21],[28,22,28,34],[28,35,28,39],[29,2,29,6],[29,7,29,21],[29,22,29,34],[29,35,29,39],[34,2,34,6],[34,7,34,21],[34,22,34,34],[34,35,34,39],[35,2,35,6],[35,7,35,21],[35,22,35,34],[35,35,35,39],[32,2,32,6],[32,7,32,21],[32,22,32,34],[32,35,32,39],[33,2,33,6],[33,7,33,21],[33,22,33,34],[33,35,33,39],[38,2,38,6],[38,7,38,21],[38,22,38,34],[38,35,38,39],[39,2,39,6],[39,7,39,21],[39,22,39,34],[39,35,39,39],[36,2,36,6],[36,7,36,21],[36,22,36,34],[36,35,36,39],[37,2,37,6],[37,7,37,21],[37,22,37,34],[37,35,37,39],[42,2,42,6],[42,7,42,21],[42,22,42,34],[42,35,42,39],[43,2,43,6],[43,7,43,21],[43,22,43,34],[43,35,43,39],[40,2,40,6],[40,7,40,21],[40,22,40,34],[40,35,40,39],[41,2,41,6],[41,7,41,21],[41,22,41,34],[41,35,41,39],[46,2,46,6],[46,7,46,21],[46,22,46,34],[46,35,46,39],[47,2,47,6],[47,7,47,21],[47,22,47,34],[47,35,47,39],[44,2,44,6],[44,7,44,21],[44,22,44,34],[44,35,44,39],[45,2,45,6],[45,7,45,21],[45,22,45,34],[45,35,45,39],[50,2,50,6],[50,7,50,21],[50,22,50,34],[50,35,50,39],[51,2,51,6],[51,7,51,21],[51,22,51,34],[51,35,51,39],[48,2,48,6],[48,7,48,21],[48,22,48,34],[48,35,48,39],[49,2,49,6],[49,7,49,21],[49,22,49,34],[49,35,49,39],[55,7,55,21],[55,22,55,34],[55,35,55,39],[52,2,52,6],[52,7,52,21],[52,22,52,34],[52,35,52,39],[53,2,53,6],[53,7,53,21],[53,22,53,34],[53,35,53,39],[0,45,0,53],[1,1,4,52],[5,1,5,52],[20,2,20,51],[21,2,21,51],[61,1,62,52],[63,1,70,52],[58,2,58,6],[58,7,58,21],[58,22,58,34],[58,35,58,39],[56,2,56,6],[56,7,56,21],[56,22,56,34],[56,35,56,39],[57,2,57,6],[57,7,57,21],[57,22,57,34],[57,35,57,39],[54,2,54,6],[54,7,54,21],[54,22,54,34],[54,35,54,39],[55,2,55,6]]}
[null,null,null,null,null,null,null,null,null,null,null,null,null,null,null,null,null,null,null,null,null,null,null,null,null,null,null,null,null,null,null,null,null,null,null,null,null,null,null,null,null,null,null,null,null,"手書き・PDFは不可"]
[null,{"$f":"IT運用有_設定申込書!B2","v":"IT運用有【様式8Y】ギガらくルーター_設定変更申込書"}]
[]
[]
[]
[null,"【別紙12】ダッシュボード統合設定"]
[null,null,null,null,null,null,null,null,null,null,null,null,null,null,null,null,null,null,null,null,null,null,null,null,null,null,null,null,null,null,null,null,null,null,null,null,null,null,null,null,null,null,null,null,null,null,null,{"$f":"IT運用有_設定申込書!AV6","v":"Ver1.0(2026.03.02～)"}]
[null,"■ ご利用中のギガらくルーター Type-Yダッシュボードの統合"]
[null,null,"・すでにギガらくルーターType-Yをご利用の場合、ご利用中の契約IDのうちいずれかを記載願います。\n・今回初めてギガらくルーターType-Yをお申込みいただく場合は記入不要です。\n・記入いただいた契約ＩＤから対象のギガらくルーター装置を検索し、サポートセンタにて統合設定を行います。"]
[]
[null,null,"既設のギガらくルーターType-Yの契約ＩＤ（CAF/COP/HGI/AGI）"]
[]
[]
[null,"■統合管理するギガらくルーター Type-Yの指定"]
[null,null,"・記入いただくリスト項目の内容"]
[]
[null,null,"契約ステータス",null,null,null,null,null,null,"（新規）：今回新規に申し込むサービス\n（既設）：既に契約済み・ご利用中のサービス　★1"]
[null,null,"契約ID　★2",null,null,null,null,null,null,"サービスの契約IDをご記入ください。\n（CAF/COP/HGI/AGI）で始まるもの"]
[null,null,"サービス種別",null,null,null,null,null,null,"契約IDのサービス種別を選択 （エンタープライズ10GプランType-Y）\n※ギガらくルーターType-Y以外のギガらくサービス（ルーター、スイッチ、Wi-Fi）とは統合はできません。"]
[null,null,"統合希望日および\n時間帯",null,null,null,null,null,null,"統合希望日の記入および時間帯を選択します。★3"]
[null,null,"★1\n 　統合設定時は、統合対象となるギガらくＶＰＮ Type-Dに数分～数十分のサービス断が発生します。\n★2\n　　新規申込については、それぞれのオーダー投入の際に発行される契約IDを入力してください。（不明な場合はオーダー担当者に問い合わせてください。）　　　 "]
[null,null,"★3\n　　-統合希望日に土日祝は指定できません。\n　　-統合希望日のご希望に添えない場合,サポートセンタより営業担当者様へご連絡致します。\n　　-統合希望日の３営業日前以降は変更オーダーは受けられません。\n  　-新規申込と新規申込の統合の場合,利用開始日までに統合設定をするため、希望の記載は不要です。\n　　-既存契約と新規申込の統合の場合、新規申込分の利用開始日の2営業日前～利用開始日以前の日付を記載してください。"]
[null,null,"統合希望日",null,null,null,null,null,null,null,null,"年",null,null,null,"月",null,null,null,"日","時間帯",null,null,null,null,null,"時間帯を選択"]
[]
[null,null,"契約ステータス",null,null,null,null,"契約ID",null,null,null,null,null,null,null,null,null,null,null,null,null,null,"サービス種別",null,null,null,null,null,null,null,null,null,null,null,null,"備考"]
[null,null,"新規",null,null,null,null,"HGI1234567890",null,null,null,null,null,null,null,null,null,null,null,null,null,null,"エンタープライズ10GプランType-Y",null,null,null,null,null,null,null,null,null,null,null,null,"記載例"]
[]
[]
[]
[]
[]
[]
[]
[]
[]
[]
[]
[]
[]
[]
[]
[]
[]
[]
[]
[]
[]
[]
[]
[]
[]
[]
[]
[]
[]
[]
[]
[]
[]
[null,null,null,"※記入欄が足りない場合、行を追加してください。"]
[]
[null,"備考欄"]

{"sheet":"リスト","index":12,"n_rows":26,"n_cols":14,"rows_kept":26,"cut":false,"hidden":true,"merged":[[3,7,4,7]]}
["機種名","設置場所","サブネットマスク",null,null,null,"サービス","「設定申込書」シートWAN接続形式に応じた「WAN側 IPv4アドレスタイプ」表示パターン",null,null,null,null,null,"左表説明"]
["　",null,"選択",null,null,null,"接続形式を選択してください","回線名","【ネクスト】IPoE DS-Liteビジネス(Transix） ※AFTR : gwe.transix.jp","【ネクスト】IPoE MAP-E（OCN）","【クロス】IPoE DS-Liteビジネス(Transix） ※AFTR : gwe.transix.jp","【クロス】IPoE MAP-E（OCN）",null,"##固定IPタイプ、動的IPタイプがある回線名(G列の名称)を記載"]
["VPN機器 (DBG-X1000)","平置き","255.0.0.0(/8)",null,null,null,"【ネクスト】PPPoE(IPv4)","リスト名","ネクストDSビジネス","ネクストMAPE","クロスDSビジネス","クロスMAPE",null,"##2行目の名称に応じたリスト名を定義（記号等は使用不可）"]
["VPN機器 (DBG-2000)","ラック設置※3","255.128.0.0(/9)",null,null,null,"【ネクスト】IPoE DS-Lite(Transix) ※AFTR : gw.transix.jp ","表示\nパターン","動的IPタイプ","動的IPタイプ","固定IPタイプ","動的IPタイプ",null,"##列ごとに4～5行目のIPタイプを3行目のリスト名に紐づける（「数式」⇒「名前の定義」）"]
[null,null,"255.192.0.0(/10)",null,null,null,"【ネクスト】IPoE DS-Liteビジネス(Transix） ※AFTR : gwe.transix.jp",null,"固定IPタイプ","固定IPタイプ",null,"固定IPタイプ"]
[null,null,"255.224.0.0(/11)",null,null,null,"【ネクスト】IPoE DS-Lite(Asahi-net) "]
[null,null,"255.240.0.0(/12)",null,null,null,"【ネクスト】IPoE MAP-E（OCN）","回線名に対応するリスト名",{"$f":"_xlfn.IFS(IT運用有_設定申込書!#REF!=リスト!G5,I3,IT運用有_設定申込書!#REF!=G7,J3,IT運用有_設定申込書!#REF!=G10,K3,IT運用有_設定申込書!#REF!=G11,L3)","v":{"$error":"#REF!"}},null,"##選択した回線名に応じたリスト名を表示する\n##設定申込書シートのM51セルでリスト名に応じた表示パターンが選択できる"]
[null,null,"255.248.0.0(/13)",null,null,null,"【ネクスト】IPoE MAP-E（JPIX v6 plus）"]
[null,null,"255.252.0.0(/14)",null,null,null,"【クロス】PPPoE(IPv4)"]
[null,null,"255.254.0.0(/15)",null,null,null,"【クロス】IPoE DS-Liteビジネス(Transix） ※AFTR : gwe.transix.jp"]
[null,null,"255.255.0.0(/16)",null,null,null,"【クロス】IPoE MAP-E（OCN）"]
[null,null,"255.255.128.0(/17)",null,null,null,"【クロス】IPoE MAP-E（JPIX v6 plus）"]
[null,null,"255.255.192.0(/18)"]
[null,null,"255.255.224.0(/19)"]
[null,null,"255.255.240.0(/20)"]
[null,null,"255.255.248.0(/21)"]
[null,null,"255.255.252.0(/22)"]
[null,null,"255.255.254.0(/23)"]
[null,null,"255.255.255.0(/24)"]
[null,null,"255.255.255.128(/25)"]
[null,null,"255.255.255.192(/26)"]
[null,null,"255.255.255.224(/27)"]
[null,null,"255.255.255.240(/28)"]
[null,null,"255.255.255.248(/29)"]
[null,null,"255.255.255.252(/30)"]
[null,null,"255.255.255.254(/31)"]